Workbook

Sheet Summary
B1: Failure: A startup that loses more than half of the original investment
B3: Homerun: A startup that returns more than 10x the original investment
B5: Homerun/Failure: The ratio of Homeruns to Failures as a measure of the effectiveness of selection criteria
C9: 10% Failures = 11% Homeruns = 0.88 Homerun/Failure = 5.70x expected payout
C11: >.5x | D11: >.75x | E11: >1.0x | F11: >1.5x | G11: >2.0x | H11: >2.5x | I11: >3x | J11: >3.5x | K11: >4x | L11: >4.5x | M11: >5x
B12: 100 Investments | C12: 0.9999 | D12: 0.9999 | E12: 0.9999 | F12: 0.9999 | G12: 0.9999 | H12: 0.9995 | I12: 0.9936 | J12: 0.9679 | K12: 0.9023 | L12: 0.7961 | M12: 0.6711
B13: 125 Investments | C13: 0.9999 | D13: 0.9999 | E13: 0.9999 | F13: 0.9999 | G13: 0.9999 | H13: 0.9997 | I13: 0.9978 | J13: 0.9834 | K13: 0.9349 | L13: 0.8344 | M13: 0.6945
B14: 150 Investments | C14: 0.9999 | D14: 0.9999 | E14: 0.9999 | F14: 0.9999 | G14: 0.9999 | H14: 0.9999 | I14: 0.9989 | J14: 0.9895 | K14: 0.952 | L14: 0.8619 | M14: 0.721
B15: 175 Investments | C15: 0.9999 | D15: 0.9999 | E15: 0.9999 | F15: 0.9999 | G15: 0.9999 | H15: 0.9999 | I15: 0.9995 | J15: 0.9927 | K15: 0.9568 | L15: 0.8752 | M15: 0.7286
B16: 200 Investments | C16: 0.9999 | D16: 0.9999 | E16: 0.9999 | F16: 0.9999 | G16: 0.9999 | H16: 0.9999 | I16: 0.9996 | J16: 0.9949 | K16: 0.9677 | L16: 0.8929 | M16: 0.7465
C20: 20% Failures = 11% Homeruns = 0.55 Homerun/Failure = 5.52x expected payout
C22: >.5x | D22: >.75x | E22: >1.0x | F22: >1.5x | G22: >2.0x | H22: >2.5x | I22: >3x | J22: >3.5x | K22: >4x | L22: >4.5x | M22: >5x
B23: 100 Investments | C23: 0.9999 | D23: 0.9999 | E23: 0.9999 | F23: 0.9999 | G23: 0.9999 | H23: 0.9994 | I23: 0.9878 | J23: 0.9498 | K23: 0.8707 | L23: 0.7569 | M23: 0.6181
B24: 125 Investments | C24: 0.9999 | D24: 0.9999 | E24: 0.9999 | F24: 0.9999 | G24: 0.9999 | H24: 0.9997 | I24: 0.994 | J24: 0.9657 | K24: 0.8991 | L24: 0.7847 | M24: 0.6369
B25: 150 Investments | C25: 0.9999 | D25: 0.9999 | E25: 0.9999 | F25: 0.9999 | G25: 0.9999 | H25: 0.9999 | I25: 0.9978 | J25: 0.9801 | K25: 0.9244 | L25: 0.8093 | M25: 0.657
B26: 175 Investments | C26: 0.9999 | D26: 0.9999 | E26: 0.9999 | F26: 0.9999 | G26: 0.9999 | H26: 0.9999 | I26: 0.999 | J26: 0.9871 | K26: 0.9417 | L26: 0.8368 | M26: 0.6773
B27: 200 Investments | C27: 0.9999 | D27: 0.9999 | E27: 0.9999 | F27: 0.9999 | G27: 0.9999 | H27: 0.9999 | I27: 0.9996 | J27: 0.9924 | K27: 0.9523 | L27: 0.8562 | M27: 0.6875
C31: 30% Failures = 8.9% Homeruns = 0.30 Homerun/Failure = 4.57x expected payout
C33: >.5x | D33: >.75x | E33: >1.0x | F33: >1.5x | G33: >2.0x | H33: >2.5x | I33: >3x | J33: >3.5x | K33: >4x | L33: >4.5x | M33: >5x
B34: 100 Investments | C34: 0.9999 | D34: 0.9999 | E34: 0.9999 | F34: 0.9999 | G34: 0.9988 | H34: 0.9788 | I34: 0.9145 | J34: 0.7969 | K34: 0.6458 | L34: 0.4888 | M34: 0.3528
B35: 125 Investments | C35: 0.9999 | D35: 0.9999 | E35: 0.9999 | F35: 0.9999 | G35: 0.9993 | H35: 0.9885 | I35: 0.9379 | J35: 0.8307 | K35: 0.674 | L35: 0.5033 | M35: 0.339
B36: 150 Investments | C36: 0.9999 | D36: 0.9999 | E36: 0.9999 | F36: 0.9999 | G36: 0.9996 | H36: 0.9922 | I36: 0.9521 | J36: 0.8511 | K36: 0.6903 | L36: 0.5004 | M36: 0.3268
B37: 175 Investments | C37: 0.9999 | D37: 0.9999 | E37: 0.9999 | F37: 0.9999 | G37: 0.9999 | H37: 0.996 | I37: 0.9624 | J37: 0.8663 | K37: 0.6996 | L37: 0.4995 | M37: 0.3169
B38: 200 Investments | C38: 0.9999 | D38: 0.9999 | E38: 0.9999 | F38: 0.9999 | G38: 0.9998 | H38: 0.9982 | I38: 0.9769 | J38: 0.8826 | K38: 0.7071 | L38: 0.4973 | M38: 0.3027
C42: Base Case of 40% Failures = 7.6% Homeruns = 0.19 Homerun/Failure = 3.66x expected payout
C44: >.5x | D44: >.75x | E44: >1.0x | F44: >1.5x | G44: >2.0x | H44: >2.5x | I44: >3x | J44: >3.5x | K44: >4x | L44: >4.5x | M44: >5x
B45: 100 Investments | C45: 0.9999 | D45: 0.9999 | E45: 0.9997 | F45: 0.996 | G45: 0.9556 | H45: 0.8513 | I45: 0.6883 | J45: 0.5172 | K45: 0.3591 | L45: 0.2359 | M45: 0.1436
B46: 125 Investments | C46: 0.9999 | D46: 0.9999 | E46: 0.9999 | F46: 0.9984 | G46: 0.9744 | H46: 0.8848 | I46: 0.7214 | J46: 0.5354 | K46: 0.3556 | L46: 0.2187 | M46: 0.1289
B47: 150 Investments | C47: 0.9999 | D47: 0.9999 | E47: 0.9999 | F47: 0.9995 | G47: 0.9823 | H47: 0.904 | I47: 0.7401 | J47: 0.528 | K47: 0.3301 | L47: 0.1873 | M47: 0.0997
B48: 175 Investments | C48: 0.9999 | D48: 0.9999 | E48: 0.9999 | F48: 0.9997 | G48: 0.9903 | H48: 0.9253 | I48: 0.7643 | J48: 0.5499 | K48: 0.3326 | L48: 0.1824 | M48: 0.0876
B49: 200 Investments | C49: 0.9999 | D49: 0.9999 | E49: 0.9999 | F49: 0.9997 | G49: 0.9933 | H49: 0.9372 | I49: 0.7754 | J49: 0.5456 | K49: 0.3283 | L49: 0.1671 | M49: 0.0705
C53: 50% Failures = 6.3% Homeruns = 0.12 Homerun/Failure= 3.24x expected payout
C55: >.5x | D55: >.75x | E55: >1.0x | F55: >1.5x | G55: >2.0x | H55: >2.5x | I55: >3x | J55: >3.5x | K55: >4x | L55: >4.5x | M55: >5x
B56: 100 Investments | C56: 0.9999 | D56: 0.9998 | E56: 0.9994 | F56: 0.9788 | G56: 0.8909 | H56: 0.7274 | I56: 0.5487 | J56: 0.3815 | K56: 0.2463 | L56: 0.1492 | M56: 0.0911
B57: 125 Investments | C57: 0.9999 | D57: 0.9999 | E57: 0.9996 | F57: 0.9873 | G57: 0.9135 | H57: 0.7512 | I57: 0.5553 | J57: 0.3663 | K57: 0.2239 | L57: 0.1236 | M57: 0.0646
B58: 150 Investments | C58: 0.9999 | D58: 0.9999 | E58: 0.9999 | F58: 0.9945 | G58: 0.9373 | H58: 0.7841 | I58: 0.5703 | J58: 0.3626 | K58: 0.2086 | L58: 0.1073 | M58: 0.0502
B59: 175 Investments | C59: 0.9999 | D59: 0.9999 | E59: 0.9999 | F59: 0.9971 | G59: 0.9534 | H59: 0.8086 | I59: 0.5825 | J59: 0.3564 | K59: 0.1925 | L59: 0.0897 | M59: 0.0362
B60: 200 Investments | C60: 0.9999 | D60: 0.9999 | E60: 0.9999 | F60: 0.9981 | G60: 0.961 | H60: 0.8269 | I60: 0.6021 | J60: 0.3614 | K60: 0.1846 | L60: 0.0799 | M60: 0.03
C64: 60% Failures = 5.1% Homeruns = 0.085 Homeruns/Failures = 2.68x expected payout
C66: >.5x | D66: >.75x | E66: >1.0x | F66: >1.5x | G66: >2.0x | H66: >2.5x | I66: >3x | J66: >3.5x | K66: >4x | L66: >4.5x | M66: >5x
B67: 100 Investments | C67: 0.9998 | D67: 0.9988 | E67: 0.9903 | F67: 0.8996 | G67: 0.7129 | H67: 0.5156 | I67: 0.3451 | J67: 0.2155 | K67: 0.1237 | L67: 0.0669 | M67: 0.0337
B68: 125 Investments | C68: 0.9998 | D68: 0.9997 | E68: 0.997 | F68: 0.931 | G68: 0.7556 | H68: 0.5372 | I68: 0.3499 | J68: 0.1973 | K68: 0.1021 | L68: 0.0513 | M68: 0.024
B69: 150 Investments | C69: 0.9999 | D69: 0.9998 | E69: 0.9974 | F69: 0.9419 | G69: 0.7715 | H69: 0.5369 | I69: 0.3199 | J69: 0.169 | K69: 0.0794 | L69: 0.0337 | M69: 0.0147
B70: 175 Investments | C70: 0.9999 | D70: 0.9999 | E70: 0.9985 | F70: 0.9602 | G70: 0.7953 | H70: 0.5492 | I70: 0.3175 | J70: 0.1594 | K70: 0.0707 | L70: 0.0276 | M70: 0.0104
B71: 200 Investments | C71: 0.9999 | D71: 0.9999 | E71: 0.9999 | F71: 0.9697 | G71: 0.8146 | H71: 0.5504 | I71: 0.309 | J71: 0.1405 | K71: 0.0576 | L71: 0.0185 | M71: 0.0053
C75: 70% Failures = 3.8% Homeruns = 0.054 Homerun/Failure = 1.97x expected payout
C77: >.5x | D77: >.75x | E77: >1.0x | F77: >1.5x | G77: >2.0x | H77: >2.5x | I77: >3x | J77: >3.5x | K77: >4x | L77: >4.5x | M77: >5x
B78: 100 Investments | C78: 0.9972 | D78: 0.9693 | E78: 0.8969 | F78: 0.6496 | G78: 0.4336 | H78: 0.262 | I78: 0.1399 | J78: 0.0733 | K78: 0.0348 | L78: 0.0165 | M78: 0.0062
B79: 125 Investments | C79: 0.9987 | D79: 0.9845 | E79: 0.9217 | F79: 0.6763 | G79: 0.4285 | H79: 0.2365 | I79: 0.1169 | J79: 0.0516 | K79: 0.0219 | L79: 0.0082 | M79: 0.0032
B80: 150 Investments | C80: 0.9994 | D80: 0.9913 | E80: 0.9444 | F80: 0.7024 | G80: 0.4339 | H80: 0.2277 | I80: 0.1034 | J80: 0.0387 | K80: 0.0139 | L80: 0.0057 | M80: 0.0015
B81: 175 Investments | C81: 0.9994 | D81: 0.9943 | E81: 0.9579 | F81: 0.7359 | G81: 0.4453 | H81: 0.2171 | I81: 0.0919 | J81: 0.0348 | K81: 0.0131 | L81: 0.0045 | M81: 0.0014
B82: 200 Investments | C82: 0.9998 | D82: 0.9961 | E82: 0.968 | F82: 0.7519 | G82: 0.4447 | H82: 0.2009 | I82: 0.0742 | J82: 0.0238 | K82: 0.0053 | L82: 0.0012 | M82: 0.0003
C86: 80% Failures = 2.5% Homeruns = 0.031 Homerun/Failure = 1.32x expected payout
C88: >.5x | D88: >.75x | E88: >1.0x | F88: >1.5x | G88: >2.0x | H88: >2.5x | I88: >3x | J88: >3.5x | K88: >4x | L88: >4.5x | M88: >5x
B89: 100 Investments | C89: 0.9241 | D89: 0.7697 | E89: 0.5867 | F89: 0.3277 | G89: 0.1782 | H89: 0.0852 | I89: 0.0373 | J89: 0.0181 | K89: 0.0067 | L89: 0.0032 | M89: 0.0017
B90: 125 Investments | C90: 0.9543 | D90: 0.8095 | E90: 0.6227 | F90: 0.3386 | G90: 0.1627 | H90: 0.0725 | I90: 0.029 | J90: 0.01 | K90: 0.0033 | L90: 0.0015 | M90: 0.0004
B91: 150 Investments | C91: 0.97 | D91: 0.8394 | E91: 0.6488 | F91: 0.3356 | G91: 0.1431 | H91: 0.0545 | I91: 0.0167 | J91: 0.005 | K91: 0.0014 | L91: 0.0005 | M91: 0
B92: 175 Investments | C92: 0.9786 | D92: 0.8635 | E92: 0.6659 | F92: 0.3397 | G92: 0.1318 | H92: 0.045 | I92: 0.0123 | J92: 0.0029 | K92: 0.0007 | L92: 0 | M92: 0
B93: 200 Investments | C93: 0.9847 | D93: 0.8738 | E93: 0.6878 | F93: 0.325 | G93: 0.1152 | H93: 0.0294 | I93: 0.0065 | J93: 0.0012 | K93: 0 | L93: 0 | M93: 0
C97: 90% Failures= 1.3% Homeruns = 0.014 Homerun/Failure = 0.69x expected payout
C99: >.5x | D99: >.75x | E99: >1.0x | F99: >1.5x | G99: >2.0x | H99: >2.5x | I99: >3x | J99: >3.5x | K99: >4x | L99: >4.5x | M99: >5x
B100: 100 Investments | C100: 0.5328 | D100: 0.3197 | E100: 0.2075 | F100: 0.1039 | G100: 0.0398 | H100: 0.0152 | I100: 0.0059 | J100: 0.0026 | K100: 0.0009 | L100: 0.0002 | M100: 0
B101: 125 Investments | C101: 0.558 | D101: 0.3311 | E101: 0.2108 | F101: 0.0855 | G101: 0.0273 | H101: 0.0094 | I101: 0.0031 | J101: 0.0004 | K101: 0.0002 | L101: 0 | M101: 0
B102: 150 Investments | C102: 0.5707 | D102: 0.3312 | E102: 0.2048 | F102: 0.0676 | G102: 0.0193 | H102: 0.0058 | I102: 0.0013 | J102: 0.0002 | K102: 0 | L102: 0 | M102: 0
B103: 175 Investments | C103: 0.6001 | D103: 0.347 | E103: 0.2123 | F103: 0.054 | G103: 0.0134 | H103: 0.0018 | I103: 0.0001 | J103: 0 | K103: 0 | L103: 0 | M103: 0
B104: 200 Investments | C104: 0.621 | D104: 0.3562 | E104: 0.2 | F104: 0.0434 | G104: 0.0081 | H104: 0.0014 | I104: 0 | J104: 0 | K104: 0 | L104: 0 | M104: 0
C111: Expected Outcomes at 150 Investments Based on Variable Estimation for Probabilities of Future Failure Rates
A113: Failure Rate | B113: Estimated Probability | C113: >.5x | D113: >.75x | E113: >1.0x | F113: >1.5x | G113: >2.0x | H113: >2.5x | I113: >3x | J113: >3.5x | K113: >4x | L113: >4.5x | M113: >5x
A115: 10 | B115: =B118/32 -> 0.0135140625 | C115: =$B$115*C14 -> 0.01351271109 | D115: =$B$115*D14 -> 0.01351271109 | E115: 0.01351271109 | F115: 0.01351271109 | G115: 0.01351271109 | H115: 0.01351271109 | I115: 0.01349919703 | J115: 0.01337216484 | K115: 0.0128653875 | L115: 0.01164777047 | M115: 0.009743639063
A116: 20 | B116: =B118/16 -> 0.027028125 | C116: =$B$116*C25 -> 0.02702542219 | D116: =$B$116*D25 -> 0.02702542219 | E116: 0.02702542219 | F116: 0.02702542219 | G116: 0.02702542219 | H116: 0.02702542219 | I116: 0.02696866313 | J116: 0.02649026531 | K116: 0.02498479875 | L116: 0.02187386156 | M116: 0.01775747813
A117: 30 | B117: =B118/4 -> 0.1081125 | C117: =$B$117*C36 -> 0.1081016888 | D117: =$B$117*D36 -> 0.1081016888 | E117: 0.1081016888 | F117: 0.1081016888 | G117: 0.108069255 | H117: 0.1072692225 | I117: 0.1029339112 | J117: 0.09201454875 | K117: 0.07463005875 | L117: 0.054099495 | M117: 0.035331165
A118: 40 | B118: 0.43245 | C118: =$B$118*C47 -> 0.432406755 | D118: =$B$118*D47 -> 0.432406755 | E118: 0.432406755 | F118: 0.432233775 | G118: 0.424795635 | H118: 0.3909348 | I118: 0.320056245 | J118: 0.2283336 | K118: 0.142751745 | L118: 0.080997885 | M118: 0.043115265
A119: 50 | B119: =B118/2 -> 0.216225 | C119: =$B$119*C58 -> 0.2162033775 | D119: =$B$119*D58 -> 0.2162033775 | E119: 0.2162033775 | F119: 0.2150357625 | G119: 0.2026676925 | H119: 0.1695420225 | I119: 0.1233131175 | J119: 0.078403185 | K119: 0.045104535 | L119: 0.0232009425 | M119: 0.010854495
A120: 60 | B120: =B118/4 -> 0.1081125 | C120: =$B$120*C69 -> 0.1081016888 | D120: =$B$120*D69 -> 0.1080908775 | E120: 0.1078314075 | F120: 0.1018311637 | G120: 0.08340879375 | H120: 0.05804560125 | I120: 0.03458518875 | J120: 0.0182710125 | K120: 0.0085841325 | L120: 0.00364339125 | M120: 0.00158925375
A121: 70 | B121: =B118/8 -> 0.05405625 | C121: =$B$121*C80 -> 0.05402381625 | D121: =$B$121*D80 -> 0.05358596062 | E121: 0.0510507225 | F121: 0.03796911 | G121: 0.02345500687 | H121: 0.01230860813 | I121: 0.00558941625 | J121: 0.002091976875 | K121: 0.000751381875 | L121: 0.000308120625 | M121: 8.1084375e-05
A122: 80 | B122: =B118/16 -> 0.027028125 | C122: =$B$122*C91 -> 0.02621728125 | D122: =$B$122*D91 -> 0.02268740813 | E122: 0.0175358475 | F122: 0.00907063875 | G122: 0.003867724687 | H122: 0.001473032812 | I122: 0.0004513696875 | J122: 0.000135140625 | K122: 3.7839375e-05 | L122: 1.35140625e-05 | M122: 0
A123: 90 | B123: =B118/32 -> 0.0135140625 | C123: =$B$123*C102 -> 0.007712475469 | D123: =$B$123*D102 -> 0.0044758575 | E123: 0.00276768 | F123: 0.000913550625 | G123: 0.0002608214062 | H123: 7.83815625e-05 | I123: 1.756828125e-05 | J123: 2.7028125e-06 | K123: 0 | L123: 0 | M123: 0
A125: Expected Outcome | B125: =SUM(B115:B123) -> 1.000040625 | C125: =SUM(C115:C123) -> 0.9933052163 | D125: =SUM(D115:D123) -> 0.9860900583 | E125: 0.976435612 | F125: 0.9456938227 | G125: 0.8870630625 | H125: 0.780189802 | I125: 0.6274146769 | J125: 0.4591145967 | K125: 0.3097098788 | L125: 0.1957849805 | M125: 0.1184723803

Sheet Baseline40PctFailure Rate
A5: Last Data Row | B5: 287 | E5: Portfolio Size | F5: 5 | G5: 10 | H5: 15 | I5: 20 | J5: 25 | K5: 30 | L5: 40 | M5: 50 | N5: 60 | O5: 70 | P5: 80 | Q5: 90 | R5: 100 | S5: 125 | T5: 150 | U5: 175 | V5: 200
A7: Mean Return | B7: =SUM(A11:A287)/SUM(B11:B287) -> 3.664137436 | E7: Mean Return | F7: =SUM(F11:F10010)/10000 -> 4.6826541 | G7: 4.140513777 | H7: 3.960121755 | I7: 3.887396729 | J7: 3.878962954 | K7: =SUM(K11:K10010)/10000 -> 3.824181602 | L7: 3.815710158 | M7: 3.775089553 | N7: 3.740692465 | O7: 3.721613862 | P7: 3.716017719 | Q7: 3.739316244 | R7: =SUM(R11:R10010)/10000 -> 3.698623815 | S7: =SUM(S11:S10010)/10000 -> 3.720498355 | T7: 3.706030485 | U7: 3.696779815 | V7: 3.698050313
A8: Median Return | B8: =D149 -> 1.4 | E8: Median Return | F8: =(F5005+F5006)/2 -> 2.501331923 | G8: =(G5005+G5006)/2 -> 2.818486833 | H8: 2.897490046 | I8: 3.008378613 | J8: 3.133876994 | K8: 3.212174769 | L8: 3.355954347 | M8: 3.404080972 | N8: 3.455868942 | O8: 3.472250524 | P8: 3.502579148 | Q8: 3.55600546 | R8: 3.539766984 | S8: 3.594506345 | T8: 3.604228611 | U8: 3.605814015 | V8: 3.620109184
A10: Cash Out | B10: Cash In | C10: Years Held | D10: Multiple | Y10: >.5x | Z10: >.75x | AA10: >1.0x | AB10: >1.5x | AC10: >2.0x | AD10: >2.5x | AE10: >3x | AF10: >3.5x | AG10: >4x | AH10: >4.5x | AI10: >5x
A11: 0 | B11: 25000 | C11: 0 | D11: =A11/B11 -> 0 | F11: 0 | G11: 0.001019348269 | H11: 0.1102236757 | I11: 0.1470570453 | J11: 0.1796685123 | K11: 0.3184159028 | L11: 0.2790138242 | M11: 0.534770676 | N11: 0.4926738791 | O11: 0.8974393908 | P11: 0.8463124832 | Q11: 0.8143408695 | R11: 0.9436482414 | S11: 1.211188609 | T11: 1.460133843 | U11: 1.33035648 | V11: 1.561352468 | X11: 5 | Y11: 0.8942 | Z11: 0.8324 | AA11: 0.7774 | AB11: 0.6703 | AC11: 0.5832 | AD11: 0.5005 | AE11: 0.4203 | AF11: 0.3484 | AG11: 0.2944 | AH11: 0.2547 | AI11: 0.2284
A12: 0 | B12: 25000 | C12: 0 | D12: 0 | F12: 0 | G12: 0.0209650543 | H12: 0.1263608939 | I12: 0.2046310993 | J12: 0.1859385052 | K12: 0.3971815703 | L12: 0.4953658257 | M12: 0.6094231993 | N12: 0.7532190996 | O12: 0.961499707 | P12: 0.9076543592 | Q12: 0.9927557083 | R12: 1.138903532 | S12: 1.273253982 | T12: 1.463196204 | U12: 1.459712619 | V12: 1.570751051 | X12: 10 | Y12: 0.9669 | Z12: 0.9245 | AA12: 0.8761 | AB12: 0.7684 | AC12: 0.6604 | AD12: 0.5599 | AE12: 0.4693 | AF12: 0.3846 | AG12: 0.3254 | AH12: 0.2809 | AI12: 0.2436
A13: 0 | B13: 30000 | C13: 0 | D13: 0 | F13: 0 | G13: 0.04655010915 | H13: 0.1447755651 | I13: 0.2327119651 | J13: 0.3103191322 | K13: 0.4412559087 | L13: 0.5225949832 | M13: 0.6576113997 | N13: 0.807769798 | O13: 0.9722386577 | P13: 0.9426722844 | Q13: 1.020906238 | R13: 1.140976848 | S13: 1.303006234 | T13: 1.469107594 | U13: 1.516996065 | V13: 1.586261667 | X13: 15 | Y13: 0.9863 | Z13: 0.9583 | AA13: 0.9163 | AB13: 0.819 | AC13: 0.7039 | AD13: 0.5866 | AE13: 0.4806 | AF13: 0.3952 | AG13: 0.3286 | AH13: 0.2781 | AI13: 0.236
A14: 0 | B14: 50000 | C14: 0 | D14: 0 | F14: 0 | G14: 0.06490084135 | H14: 0.1447979754 | I14: 0.2666977505 | J14: 0.3449090089 | K14: 0.4497379982 | L14: 0.5590468885 | M14: 0.7744574874 | N14: 0.8188117186 | O14: 0.979495959 | P14: 1.028127268 | Q14: 1.030464598 | R14: 1.147950585 | S14: 1.320405165 | T14: 1.522022719 | U14: 1.54109913 | V14: 1.635452325 | X14: 20 | Y14: 0.9943 | Z14: 0.9801 | AA14: 0.9489 | AB14: 0.8556 | AC14: 0.7349 | AD14: 0.6142 | AE14: 0.5019 | AF14: 0.4098 | AG14: 0.3395 | AH14: 0.2839 | AI14: 0.2398
A15: 0 | B15: 750000 | C15: 0 | D15: 0 | F15: 0 | G15: 0.0712327323 | H15: 0.1477689807 | I15: 0.2749482205 | J15: 0.3834644256 | K15: 0.4630730536 | L15: 0.5745281345 | M15: 0.8357832695 | N15: 0.8433844125 | O15: 0.9821779242 | P15: 1.053263437 | Q15: 1.125327238 | R15: 1.186695906 | S15: 1.322222494 | T15: 1.527146622 | U15: 1.569500098 | V15: 1.659909847 | X15: 30 | Y15: 0.9992 | Z15: 0.995 | AA15: 0.9809 | AB15: 0.9144 | AC15: 0.7988 | AD15: 0.6681 | AE15: 0.5476 | AF15: 0.4453 | AG15: 0.3614 | AH15: 0.2945 | AI15: 0.2351
A16: 0 | B16: 1000 | C16: 1 | D16: 0 | F16: 0 | G16: 0.07474864549 | H16: 0.1613533941 | I16: 0.3028630247 | J16: 0.3868951824 | K16: 0.4764267493 | L16: 0.6108297282 | M16: 0.8397234502 | N16: 0.8560400059 | O16: 0.9842129399 | P16: 1.075680495 | Q16: 1.132166891 | R16: 1.192120447 | S16: 1.361087995 | T16: 1.52772589 | U16: 1.572880293 | V16: 1.675087895 | X16: 40 | Y16: 0.9997 | Z16: 0.998 | AA16: 0.9912 | AB16: 0.9464 | AC16: 0.8479 | AD16: 0.7176 | AE16: 0.5821 | AF16: 0.469 | AG16: 0.37 | AH16: 0.2957 | AI16: 0.2287
A17: 0 | B17: 10000 | C17: 1 | D17: 0 | F17: 0 | G17: 0.086436 | H17: 0.1637018695 | I17: 0.3146681936 | J17: 0.3964632284 | K17: 0.4846073644 | L17: 0.6451349528 | M17: 0.8437387729 | N17: 0.8619315637 | O17: 0.9906198152 | P17: 1.085189847 | Q17: 1.155708199 | R17: 1.227859197 | S17: 1.363653524 | T17: 1.532721376 | U17: 1.603191932 | V17: 1.682910107 | X17: 50 | Y17: 0.9999 | Z17: 0.9996 | AA17: 0.9969 | AB17: 0.9693 | AC17: 0.8784 | AD17: 0.7453 | AE17: 0.605 | AF17: 0.4772 | AG17: 0.3664 | AH17: 0.2837 | AI17: 0.2146
A18: 0 | B18: 15000 | C18: 1 | D18: 0 | F18: 0 | G18: 0.08830684128 | H18: 0.1657927824 | I18: 0.3245162302 | J18: 0.4041662947 | K18: 0.5121064335 | L18: 0.6669708201 | M18: 0.8513628754 | N18: 0.8627230631 | O18: 0.994498978 | P18: 1.131860769 | Q18: 1.192274224 | R18: 1.229203698 | S18: 1.376377783 | T18: 1.540035688 | U18: 1.6241751 | V18: 1.700691714 | X18: 60 | Y18: 0.9998 | Z18: 0.9998 | AA18: 0.9978 | AB18: 0.9755 | AC18: 0.8934 | AD18: 0.7682 | AE18: 0.6242 | AF18: 0.4883 | AG18: 0.3712 | AH18: 0.2686 | AI18: 0.1937
A19: 0 | B19: 25000 | C19: 1 | D19: 0 | F19: 0 | G19: 0.08941615542 | H19: 0.1746217414 | I19: 0.3342860715 | J19: 0.4062782484 | K19: 0.5263065941 | L19: 0.6772013379 | M19: 0.8762132017 | N19: 0.8825662853 | O19: 1.005144301 | P19: 1.136927748 | Q19: 1.194120764 | R19: 1.255643464 | S19: 1.37669669 | T19: 1.556306807 | U19: 1.63441916 | V19: 1.709844897 | X19: 70 | Y19: 0.9999 | Z19: 0.9999 | AA19: 0.9991 | AB19: 0.9838 | AC19: 0.9164 | AD19: 0.7901 | AE19: 0.6353 | AF19: 0.4935 | AG19: 0.3665 | AH19: 0.2632 | AI19: 0.1789
A20: 0 | B20: 25000 | C20: 1 | D20: 0 | F20: 0 | G20: 0.09723028169 | H20: 0.1780004608 | I20: 0.3602327881 | J20: 0.4226846806 | K20: 0.5317024776 | L20: 0.6873138568 | M20: 0.8825533276 | N20: 0.8827702654 | O20: 1.007141514 | P20: 1.164754551 | Q20: 1.197078162 | R20: 1.280281016 | S20: 1.378448616 | T20: 1.566705975 | U20: 1.636624313 | V20: 1.721559403 | X20: 80 | Y20: 0.9999 | Z20: 0.9999 | AA20: 0.9996 | AB20: 0.99 | AC20: 0.935 | AD20: 0.8137 | AE20: 0.6587 | AF20: 0.5017 | AG20: 0.3612 | AH20: 0.2501 | AI20: 0.1652
A21: 0 | B21: 30000 | C21: 1 | D21: 0 | F21: 0 | G21: 0.1013516993 | H21: 0.2025556015 | I21: 0.3635073277 | J21: 0.4240787565 | K21: 0.534050099 | L21: 0.7103159756 | M21: 0.8953521607 | N21: 0.8835062625 | O21: 1.024668766 | P21: 1.174478457 | Q21: 1.21364004 | R21: 1.280740343 | S21: 1.395402755 | T21: 1.572691065 | U21: 1.642091113 | V21: 1.741777522 | X21: 90 | Y21: 0.9999 | Z21: 0.9999 | AA21: 0.9997 | AB21: 0.992 | AC21: 0.9471 | AD21: 0.8342 | AE21: 0.6818 | AF21: 0.5194 | AG21: 0.3681 | AH21: 0.2479 | AI21: 0.1561
A22: 0 | B22: 35000 | C22: 1 | D22: 0 | F22: 0 | G22: 0.1026175008 | H22: 0.204085973 | I22: 0.3671989045 | J22: 0.4394621776 | K22: 0.5531994877 | L22: 0.7116437704 | M22: 0.9077146126 | N22: 0.8986640235 | O22: 1.056409909 | P22: 1.175004175 | Q22: 1.218752718 | R22: 1.283372799 | S22: 1.403355312 | T22: 1.586398501 | U22: 1.662838163 | V22: 1.74636693 | X22: 100 | Y22: 0.9999 | Z22: 0.9999 | AA22: 0.9998 | AB22: 0.9959 | AC22: 0.9525 | AD22: 0.8439 | AE22: 0.6893 | AF22: 0.5136 | AG22: 0.3608 | AH22: 0.2305 | AI22: 0.1398
A23: 0 | B23: 50000 | C23: 1 | D23: 0 | F23: 0 | G23: 0.1050764663 | H23: 0.2107227364 | I23: 0.3715205036 | J23: 0.4404866902 | K23: 0.5561378811 | L23: 0.7207386745 | M23: 0.9194710349 | N23: 0.9031216402 | O23: 1.056936809 | P23: 1.178826566 | Q23: 1.23616071 | R23: 1.316681763 | S23: 1.409149184 | T23: 1.589804078 | U23: 1.664030587 | V23: 1.768527286 | X23: 125 | Y23: 0.9999 | Z23: 0.9999 | AA23: 0.9999 | AB23: 0.9976 | AC23: 0.9739 | AD23: 0.8812 | AE23: 0.7244 | AF23: 0.5357 | AG23: 0.3571 | AH23: 0.2202 | AI23: 0.1233
A24: 0 | B24: 50000 | C24: 1 | D24: 0 | F24: 0 | G24: 0.1087655405 | H24: 0.2139893521 | I24: 0.3842606329 | J24: 0.4411637963 | K24: 0.5719696261 | L24: 0.7303940981 | M24: 0.9198352204 | N24: 0.909683526 | O24: 1.060755058 | P24: 1.180682018 | Q24: 1.255511576 | R24: 1.320673417 | S24: 1.432872125 | T24: 1.591698888 | U24: 1.668776303 | V24: 1.778739237 | X24: 150 | Y24: 0.9999 | Z24: 0.9999 | AA24: 0.9999 | AB24: 0.9996 | AC24: 0.9856 | AD24: 0.9031 | AE24: 0.7497 | AF24: 0.5439 | AG24: 0.3458 | AH24: 0.1996 | AI24: 0.102
A25: 0 | B25: 100000 | C25: 1 | D25: 0 | F25: 0 | G25: 0.1089032761 | H25: 0.2355000512 | I25: 0.3857656144 | J25: 0.4453435493 | K25: 0.5822605584 | L25: 0.7322875129 | M25: 0.9248170912 | N25: 0.9168018352 | O25: 1.063192483 | P25: 1.197760669 | Q25: 1.265048862 | R25: 1.332331964 | S25: 1.433626935 | T25: 1.604876058 | U25: 1.669641434 | V25: 1.782676868 | X25: 175 | Y25: 0.9999 | Z25: 0.9999 | AA25: 0.9999 | AB25: 0.9997 | AC25: 0.9908 | AD25: 0.9272 | AE25: 0.7683 | AF25: 0.5469 | AG25: 0.335 | AH25: 0.1794 | AI25: 0.0879
A26: 0 | B26: 100000 | C26: 1 | D26: 0 | F26: 0 | G26: 0.1089775574 | H26: 0.2362580543 | I26: 0.3885064601 | J26: 0.4519850232 | K26: 0.5978895358 | L26: 0.7325625448 | M26: 0.9329302795 | N26: 0.9311638413 | O26: 1.076927746 | P26: 1.198035281 | Q26: 1.267866817 | R26: 1.343678266 | S26: 1.440160571 | T26: 1.61713613 | U26: 1.671179976 | V26: 1.786351126 | X26: 200 | Y26: 0.9999 | Z26: 0.9999 | AA26: 0.9999 | AB26: 0.9999 | AC26: 0.9932 | AD26: 0.9408 | AE26: 0.7899 | AF26: 0.5549 | AG26: 0.3325 | AH26: 0.1678 | AI26: 0.0749
A27: 0 | B27: 250000 | C27: 1 | D27: 0 | F27: 0 | G27: 0.1091533597 | H27: 0.2404886888 | I27: 0.3911034146 | J27: 0.4598150872 | K27: 0.5993497088 | L27: 0.7346217465 | M27: 0.9344094701 | N27: 0.9385411155 | O27: 1.078113065 | P27: 1.211808393 | Q27: 1.270863412 | R27: 1.357111796 | S27: 1.447912627 | T27: 1.622961327 | U27: 1.684257369 | V27: 1.796067127
A28: 0 | B28: 403000 | C28: 1 | D28: 0 | F28: 0 | G28: 0.1119199664 | H28: 0.2449509755 | I28: 0.3919688812 | J28: 0.4618090967 | K28: 0.6015568064 | L28: 0.7447920535 | M28: 0.9369594289 | N28: 0.961287141 | O28: 1.095296238 | P28: 1.216025051 | Q28: 1.272123503 | R28: 1.374741723 | S28: 1.452647459 | T28: 1.632814981 | U28: 1.691277579 | V28: 1.827259265
A29: 0 | B29: 2000 | C29: 2 | D29: 0 | F29: 0 | G29: 0.1123315728 | H29: 0.2481365079 | I29: 0.3972293183 | J29: 0.4657294167 | K29: 0.6039719355 | L29: 0.745516787 | M29: 0.9452888313 | N29: 0.9707899518 | O29: 1.095911931 | P29: 1.21953384 | Q29: 1.279275358 | R29: 1.379793974 | S29: 1.455531853 | T29: 1.642460728 | U29: 1.743859988 | V29: 1.828473215
A30: 0 | B30: 4000 | C30: 2 | D30: 0 | F30: 0 | G30: 0.1137635426 | H30: 0.2488605383 | I30: 0.4112891705 | J30: 0.4673052288 | K30: 0.6172958779 | L30: 0.7653886294 | M30: 0.9512540388 | N30: 0.9721678872 | O30: 1.11792387 | P30: 1.222136648 | Q30: 1.281142457 | R30: 1.381197383 | S30: 1.462753541 | T30: 1.645943426 | U30: 1.746075348 | V30: 1.830181672
A31: 0 | B31: 5000 | C31: 2 | D31: 0 | F31: 0 | G31: 0.1146093881 | H31: 0.2557446533 | I31: 0.4117691254 | J31: 0.4733539986 | K31: 0.6457625409 | L31: 0.7799206975 | M31: 0.9520487412 | N31: 0.9926203163 | O31: 1.119614475 | P31: 1.232243931 | Q31: 1.289577425 | R31: 1.38144352 | S31: 1.464574693 | T31: 1.646248464 | U31: 1.748977901 | V31: 1.839806639 | Y31: >1.0x | Z31: >2.0x | AA31: >3x
A32: 0 | B32: 10000 | C32: 2 | D32: 0 | F32: 9.302109253e-07 | G32: 0.1158305694 | H32: 0.2610160312 | I32: 0.417674488 | J32: 0.4766227204 | K32: 0.6467961939 | L32: 0.7840802466 | M32: 0.9595456197 | N32: 1.008157324 | O32: 1.121143345 | P32: 1.245608514 | Q32: 1.289761472 | R32: 1.383557264 | S32: 1.486864977 | T32: 1.661103835 | U32: 1.749364345 | V32: 1.841380491 | Y32: 0.7774 | Z32: 0.5832 | AA32: 0.4203
A33: 0 | B33: 20000 | C33: 2 | D33: 0 | F33: 1.025614728e-06 | G33: 0.1159693233 | H33: 0.2633507959 | I33: 0.4202443693 | J33: 0.4777019464 | K33: 0.6571101481 | L33: 0.7847590014 | M33: 0.9654374918 | N33: 1.011870905 | O33: 1.122621376 | P33: 1.245885062 | Q33: 1.310320981 | R33: 1.395482436 | S33: 1.493059759 | T33: 1.667062965 | U33: 1.756468428 | V33: 1.851245638 | X33: 5 | Y33: 0.8761 | Z33: 0.6604 | AA33: 0.4693
A34: 0 | B34: 25000 | C34: 2 | D34: 0 | F34: 1.430615165e-06 | G34: 0.1202642063 | H34: 0.269929804 | I34: 0.4208105213 | J34: 0.4821995986 | K34: 0.6586146298 | L34: 0.7858567291 | M34: 0.9660769597 | N34: 1.017168532 | O34: 1.140564917 | P34: 1.249854636 | Q34: 1.310821173 | R34: 1.395764009 | S34: 1.503072801 | T34: 1.6704215 | U34: 1.757983312 | V34: 1.852729975 | X34: 10 | Y34: 0.9163 | Z34: 0.7039 | AA34: 0.4806
A35: 0 | B35: 25000 | C35: 2 | D35: 0 | F35: 1.6e-06 | G35: 0.1210683957 | H35: 0.2746389197 | I35: 0.4229078635 | J35: 0.4836278239 | K35: 0.6607344276 | L35: 0.7935819976 | M35: 0.96809523 | N35: 1.017888573 | O35: 1.145534092 | P35: 1.251834004 | Q35: 1.316745552 | R35: 1.419684186 | S35: 1.505575333 | T35: 1.672727548 | U35: 1.758107419 | V35: 1.869419266 | X35: 15 | Y35: 0.9489 | Z35: 0.7349 | AA35: 0.5019
A36: 0 | B36: 25000 | C36: 2 | D36: 0 | F36: 0.0007473143391 | G36: 0.1222640027 | H36: 0.2774493743 | I36: 0.4236777773 | J36: 0.4917970685 | K36: 0.6629485222 | L36: 0.795062868 | M36: 0.9715240668 | N36: 1.02682429 | O36: 1.146770693 | P36: 1.251846422 | Q36: 1.329157108 | R36: 1.434073026 | S36: 1.533628982 | T36: 1.672782441 | U36: 1.766905552 | V36: 1.877273417 | X36: 20 | Y36: 0.9658 | Z36: 0.7787 | AA36: 0.5306
A37: 0 | B37: 25000 | C37: 2 | D37: 0 | F37: 0.00078125 | G37: 0.1243429672 | H37: 0.2805947145 | I37: 0.4245583447 | J37: 0.4924686417 | K37: 0.6680787084 | L37: 0.7951659762 | M37: 0.9741542205 | N37: 1.033523221 | O37: 1.149326727 | P37: 1.254011275 | Q37: 1.3304429 | R37: 1.445690439 | S37: 1.552744849 | T37: 1.681239 | U37: 1.767468775 | V37: 1.890109074 | X37: 30 | Y37: 0.9809 | Z37: 0.7988 | AA37: 0.5476
A38: 0 | B38: 25025 | C38: 2 | D38: 0 | F38: 0.001498127341 | G38: 0.1306637851 | H38: 0.2808721528 | I38: 0.4279358443 | J38: 0.5007722026 | K38: 0.6729569605 | L38: 0.7955653673 | M38: 0.9884782271 | N38: 1.054488584 | O38: 1.16146319 | P38: 1.257871041 | Q38: 1.334962272 | R38: 1.449696727 | S38: 1.559278919 | T38: 1.686294298 | U38: 1.768046454 | V38: 1.890920222 | X38: 40 | Y38: 0.9912 | Z38: 0.8479 | AA38: 0.5821
A39: 0 | B39: 50000 | C39: 2 | D39: 0 | F39: 0.001512084592 | G39: 0.1346268712 | H39: 0.2813795104 | I39: 0.4296620382 | J39: 0.5256766375 | K39: 0.6804739839 | L39: 0.8020838523 | M39: 0.9956001129 | N39: 1.070416238 | O39: 1.16483647 | P39: 1.260452547 | Q39: 1.34450967 | R39: 1.45134444 | S39: 1.569598321 | T39: 1.6928925 | U39: 1.775462744 | V39: 1.892238127 | X39: 50 | Y39: 0.9969 | Z39: 0.8784 | AA39: 0.605
A40: 0 | B40: 50000 | C40: 2 | D40: 0 | F40: 0.002049180328 | G40: 0.1402300341 | H40: 0.2854997877 | I40: 0.4307479737 | J40: 0.5278258182 | K40: 0.6866364816 | L40: 0.8040328133 | M40: 0.9979623032 | N40: 1.074147973 | O40: 1.165535867 | P40: 1.263546173 | Q40: 1.347578337 | R40: 1.451711089 | S40: 1.572452781 | T40: 1.69405987 | U40: 1.797479282 | V40: 1.892301972 | X40: 60 | Y40: 0.9978 | Z40: 0.8934 | AA40: 0.6242
A41: 0 | B41: 50000 | C41: 2 | D41: 0 | F41: 0.002274204947 | G41: 0.1410651794 | H41: 0.2865763339 | I41: 0.4309739962 | J41: 0.5401930462 | K41: 0.687048538 | L41: 0.8087254102 | M41: 1.002234832 | N41: 1.077427938 | O41: 1.195404058 | P41: 1.27338513 | Q41: 1.347636381 | R41: 1.456620643 | S41: 1.574170165 | T41: 1.695420255 | U41: 1.804785717 | V41: 1.896193273 | X41: 70 | Y41: 0.9991 | Z41: 0.9164 | AA41: 0.6353
A42: 0 | B42: 100000 | C42: 2 | D42: 0 | F42: 0.00234368932 | G42: 0.1425360177 | H42: 0.2888517119 | I42: 0.4334517281 | J42: 0.5419505411 | K42: 0.6885283178 | L42: 0.809222239 | M42: 1.004272983 | N42: 1.079151379 | O42: 1.195620217 | P42: 1.281509251 | Q42: 1.349826333 | R42: 1.470373691 | S42: 1.578119266 | T42: 1.700976456 | U42: 1.805877705 | V42: 1.900453635 | X42: 80 | Y42: 0.9996 | Z42: 0.935 | AA42: 0.6587
A43: 0 | B43: 100000 | C43: 2 | D43: 0 | F43: 0.002835726254 | G43: 0.1432966234 | H43: 0.3063308492 | I43: 0.4390722471 | J43: 0.542677331 | K43: 0.6886689236 | L43: 0.8255898247 | M43: 1.005205118 | N43: 1.081095942 | O43: 1.201815787 | P43: 1.286195653 | Q43: 1.350393308 | R43: 1.478089684 | S43: 1.584294651 | T43: 1.702632521 | U43: 1.806303938 | V43: 1.907319795 | X43: 90 | Y43: 0.9997 | Z43: 0.9471 | AA43: 0.6818
A44: 0 | B44: 100000 | C44: 2 | D44: 0 | F44: 0.002934453073 | G44: 0.144155297 | H44: 0.309389437 | I44: 0.4432189638 | J44: 0.5437841541 | K44: 0.6891599679 | L44: 0.825841731 | M44: 1.0338952 | N44: 1.083061971 | O44: 1.203314996 | P44: 1.286723899 | Q44: 1.354700328 | R44: 1.478230214 | S44: 1.589531509 | T44: 1.710854537 | U44: 1.810227739 | V44: 1.9090055 | X44: 100 | Y44: 0.9998 | Z44: 0.9525 | AA44: 0.6893
A45: 0 | B45: 182110 | C45: 2 | D45: 0 | F45: 0.003232323232 | G45: 0.1466645408 | H45: 0.3144282892 | I45: 0.4458691744 | J45: 0.5465188844 | K45: 0.7117292684 | L45: 0.828894042 | M45: 1.041262985 | N45: 1.099507133 | O45: 1.205240777 | P45: 1.291877457 | Q45: 1.362631554 | R45: 1.480083132 | S45: 1.590701734 | T45: 1.713376185 | U45: 1.816826185 | V45: 1.914307269 | X45: 125 | Y45: 0.9999 | Z45: 0.9739 | AA45: 0.7244
A46: 0 | B46: 200000 | C46: 2 | D46: 0 | F46: 0.003906148867 | G46: 0.1481249282 | H46: 0.3203422876 | I46: 0.4484921846 | J46: 0.5492464379 | K46: 0.7186547003 | L46: 0.8335212717 | M46: 1.050964717 | N46: 1.099600064 | O46: 1.205469862 | P46: 1.292823423 | Q46: 1.363171703 | R46: 1.482349196 | S46: 1.597368482 | T46: 1.718149757 | U46: 1.823228331 | V46: 1.915499251 | X46: 150 | Y46: 0.9999 | Z46: 0.9856 | AA46: 0.7497
A47: 0 | B47: 350000 | C47: 2 | D47: 0 | F47: 0.004768774704 | G47: 0.1502161234 | H47: 0.322378023 | I47: 0.4493449789 | J47: 0.5522712629 | K47: 0.7197926648 | L47: 0.8352860789 | M47: 1.055678245 | N47: 1.102293677 | O47: 1.213489438 | P47: 1.294898985 | Q47: 1.363303079 | R47: 1.482458742 | S47: 1.601402752 | T47: 1.725705215 | U47: 1.823770512 | V47: 1.93094474 | X47: 175 | Y47: 0.9999 | Z47: 0.9908 | AA47: 0.7683
A48: 0 | B48: 415000 | C48: 2 | D48: 0 | F48: 0.004854368932 | G48: 0.150743377 | H48: 0.3248526481 | I48: 0.4530890145 | J48: 0.554704021 | K48: 0.7226205888 | L48: 0.8365485727 | M48: 1.058968963 | N48: 1.104498524 | O48: 1.217341486 | P48: 1.297662147 | Q48: 1.366502143 | R48: 1.490748942 | S48: 1.601635522 | T48: 1.731945646 | U48: 1.828806496 | V48: 1.933497561 | X48: 200
A49: 0 | B49: 1250000 | C49: 2 | D49: 0 | F49: 0.004868154158 | G49: 0.1510323961 | H49: 0.3270288344 | I49: 0.454639768 | J49: 0.5617966697 | K49: 0.7229504849 | L49: 0.8393861133 | M49: 1.059097072 | N49: 1.108084636 | O49: 1.218041943 | P49: 1.307474588 | Q49: 1.367977834 | R49: 1.490891002 | S49: 1.607243345 | T49: 1.754440903 | U49: 1.835272854 | V49: 1.934038468
A50: 0 | B50: 15000 | C50: 3 | D50: 0 | F50: 0.004968296231 | G50: 0.1636010363 | H50: 0.3274050928 | I50: 0.4549511632 | J50: 0.5677735492 | K50: 0.7242831925 | L50: 0.8406322454 | M50: 1.061674737 | N50: 1.11613902 | O50: 1.236218161 | P50: 1.308042712 | Q50: 1.370117518 | R50: 1.492716489 | S50: 1.613611779 | T50: 1.756396707 | U50: 1.837026024 | V50: 1.934109398
A51: 0 | B51: 2698 | C51: 3 | D51: 0 | F51: 0.007135947733 | G51: 0.16369956 | H51: 0.3290961369 | I51: 0.456140878 | J51: 0.5684294563 | K51: 0.7267945224 | L51: 0.84086583 | M51: 1.072707918 | N51: 1.11646422 | O51: 1.244175376 | P51: 1.313757919 | Q51: 1.370765758 | R51: 1.503223753 | S51: 1.616458271 | T51: 1.758231129 | U51: 1.838355352 | V51: 1.935058466
A52: 0 | B52: 14582 | C52: 3 | D52: 0 | F52: 0.007173714875 | G52: 0.1656062876 | H52: 0.3342760892 | I52: 0.4598732332 | J52: 0.5686614386 | K52: 0.7305964352 | L52: 0.8441949166 | M52: 1.076708801 | N52: 1.117385442 | O52: 1.244490759 | P52: 1.31378717 | Q52: 1.372703256 | R52: 1.50769136 | S52: 1.622437665 | T52: 1.760634367 | U52: 1.84654373 | V52: 1.936390781
A53: 0 | B53: 15000 | C53: 3 | D53: 0 | F53: 0.007294832827 | G53: 0.1698862974 | H53: 0.3499185199 | I53: 0.4628749804 | J53: 0.5730559782 | K53: 0.7310365569 | L53: 0.8501974021 | M53: 1.08272199 | N53: 1.119788275 | O53: 1.24477186 | P53: 1.318773325 | Q53: 1.378637852 | R53: 1.516259167 | S53: 1.624135705 | T53: 1.763213021 | U53: 1.847298045 | V53: 1.938833946
A54: 0 | B54: 20000 | C54: 3 | D54: 0 | F54: 0.007486195456 | G54: 0.1723334661 | H54: 0.3506245065 | I54: 0.465262085 | J54: 0.5755555652 | K54: 0.7322411487 | L54: 0.8531248764 | M54: 1.09096725 | N54: 1.124098655 | O54: 1.24633472 | P54: 1.321335378 | Q54: 1.380866963 | R54: 1.522885345 | S54: 1.624337649 | T54: 1.764828813 | U54: 1.852368079 | V54: 1.93892514
A55: 0 | B55: 24000 | C55: 3 | D55: 0 | F55: 0.00797079857 | G55: 0.1727432558 | H55: 0.3508292066 | I55: 0.4680954654 | J55: 0.5759782383 | K55: 0.7353977217 | L55: 0.8545512996 | M55: 1.100774085 | N55: 1.125661633 | O55: 1.249113618 | P55: 1.327948825 | Q55: 1.382849335 | R55: 1.527090065 | S55: 1.624539129 | T55: 1.772563863 | U55: 1.859333851 | V55: 1.945721487
A56: 0 | B56: 25000 | C56: 3 | D56: 0 | F56: 0.008 | G56: 0.1748887828 | H56: 0.3544977152 | I56: 0.4736630665 | J56: 0.5760004047 | K56: 0.7363072471 | L56: 0.8572017132 | M56: 1.106596273 | N56: 1.127873528 | O56: 1.251173979 | P56: 1.334608759 | Q56: 1.389827128 | R56: 1.529232105 | S56: 1.629639311 | T56: 1.775299811 | U56: 1.87344518 | V56: 1.950380747
A57: 0 | B57: 25000 | C57: 3 | D57: 0 | F57: 0.008126036484 | G57: 0.17660134 | H57: 0.3556896079 | I57: 0.4768374156 | J57: 0.5794130202 | K57: 0.7374315276 | L57: 0.8651657376 | M57: 1.112128115 | N57: 1.129711436 | O57: 1.25194247 | P57: 1.338692258 | Q57: 1.393524859 | R57: 1.529939241 | S57: 1.629918983 | T57: 1.777943639 | U57: 1.874828201 | V57: 1.957061271
A58: 0 | B58: 25000 | C58: 3 | D58: 0 | F58: 0.008131707317 | G58: 0.1779564895 | H58: 0.3577481664 | I58: 0.4770991296 | J58: 0.5810757996 | K58: 0.745123709 | L58: 0.866079663 | M58: 1.115286495 | N58: 1.131836383 | O58: 1.256789469 | P58: 1.34208571 | Q58: 1.397028253 | R58: 1.535832481 | S58: 1.637412484 | T58: 1.783386569 | U58: 1.87710218 | V58: 1.958425474
A59: 0 | B59: 38000 | C59: 3 | D59: 0 | F59: 0.00829015544 | G59: 0.1787790698 | H59: 0.3589983098 | I59: 0.4852132159 | J59: 0.5833950191 | K59: 0.7480850162 | L59: 0.8721653552 | M59: 1.116461891 | N59: 1.133614611 | O59: 1.257047429 | P59: 1.342405511 | Q59: 1.398099481 | R59: 1.543629872 | S59: 1.641466461 | T59: 1.786578764 | U59: 1.877750681 | V59: 1.960315373
A60: 0 | B60: 50000 | C60: 3 | D60: 0 | F60: 0.008602150538 | G60: 0.1800818482 | H60: 0.3595556921 | I60: 0.4857747119 | J60: 0.5848693941 | K60: 0.7522605904 | L60: 0.8754402604 | M60: 1.12456768 | N60: 1.135951524 | O60: 1.261336225 | P60: 1.343722516 | Q60: 1.403574761 | R60: 1.545321717 | S60: 1.645290998 | T60: 1.788607281 | U60: 1.882144883 | V60: 1.963029535
A61: 0 | B61: 82520 | C61: 3 | D61: 0 | F61: 0.008781181619 | G61: 0.1873683643 | H61: 0.3625248189 | I61: 0.4893436784 | J61: 0.5878248206 | K61: 0.7556944531 | L61: 0.8815236901 | M61: 1.126680607 | N61: 1.136453506 | O61: 1.267857154 | P61: 1.34562259 | Q61: 1.409925793 | R61: 1.549585316 | S61: 1.648518972 | T61: 1.807198801 | U61: 1.888296958 | V61: 1.964550021
A62: 0 | B62: 100000 | C62: 3 | D62: 0 | F62: 0.009848979592 | G62: 0.1893152859 | H62: 0.3662947649 | I62: 0.4904766505 | J62: 0.588381196 | K62: 0.7573904749 | L62: 0.8861196594 | M62: 1.126741176 | N62: 1.136935284 | O62: 1.268243509 | P62: 1.350867262 | Q62: 1.412965517 | R62: 1.557800497 | S62: 1.655170276 | T62: 1.809912861 | U62: 1.894065626 | V62: 1.965421418
A63: 0 | B63: 100000 | C63: 3 | D63: 0 | F63: 0.01004016064 | G63: 0.1897291379 | H63: 0.3678523003 | I63: 0.493402232 | J63: 0.5891963202 | K63: 0.7593249039 | L63: 0.8864396604 | M63: 1.1287369 | N63: 1.14035459 | O63: 1.270636197 | P63: 1.357487844 | Q63: 1.418772972 | R63: 1.557918846 | S63: 1.6553716 | T63: 1.811391945 | U63: 1.896438239 | V63: 1.966851819
A64: 0 | B64: 100000 | C64: 3 | D64: 0 | F64: 0.01019677996 | G64: 0.1956829114 | H64: 0.3692753056 | I64: 0.4966856694 | J64: 0.5892013522 | K64: 0.7597088731 | L64: 0.8933945103 | M64: 1.129295117 | N64: 1.150429191 | O64: 1.270873324 | P64: 1.358441399 | Q64: 1.420881661 | R64: 1.559405465 | S64: 1.660661797 | T64: 1.81235883 | U64: 1.898467504 | V64: 1.972048296
A65: 0 | B65: 100000 | C65: 3 | D65: 0 | F65: 0.01027568922 | G65: 0.1959299293 | H65: 0.3696237346 | I65: 0.4967223021 | J65: 0.5917955348 | K65: 0.7638480267 | L65: 0.9051469856 | M65: 1.133199998 | N65: 1.158664595 | O65: 1.272326652 | P65: 1.367251989 | Q65: 1.425275958 | R65: 1.563100595 | S65: 1.662511533 | T65: 1.812876626 | U65: 1.898492924 | V65: 1.974281475
A66: 0 | B66: 131250 | C66: 3 | D66: 0 | F66: 0.01035929387 | G66: 0.2033914772 | H66: 0.3725862669 | I66: 0.4988459875 | J66: 0.5941350153 | K66: 0.7670677119 | L66: 0.9060387789 | M66: 1.135846388 | N66: 1.15890154 | O66: 1.277960639 | P66: 1.371941952 | Q66: 1.427304504 | R66: 1.567421434 | S66: 1.662963356 | T66: 1.813190357 | U66: 1.899078789 | V66: 1.97568975
A67: 0 | B67: 351000 | C67: 3 | D67: 0 | F67: 0.0105897657 | G67: 0.2037698777 | H67: 0.3771464554 | I67: 0.5026773899 | J67: 0.5957667663 | K67: 0.7672326891 | L67: 0.9079018236 | M67: 1.138285314 | N67: 1.160806828 | O67: 1.281009783 | P67: 1.374328609 | Q67: 1.430506244 | R67: 1.568304516 | S67: 1.665177132 | T67: 1.815306078 | U67: 1.900033717 | V67: 1.976123456
A68: 0 | B68: 25000 | C68: 4 | D68: 0 | F68: 0.01113531274 | G68: 0.2050960811 | H68: 0.3790560272 | I68: 0.5031765974 | J68: 0.6002918368 | K68: 0.7706082998 | L68: 0.9082818006 | M68: 1.138774908 | N68: 1.163775014 | O68: 1.286042222 | P68: 1.376208402 | Q68: 1.432194844 | R68: 1.569038887 | S68: 1.666823092 | T68: 1.830451793 | U68: 1.90072673 | V68: 1.976212344
A69: 0 | B69: 100000 | C69: 4 | D69: 0 | F69: 0.01135529412 | G69: 0.2063847639 | H69: 0.3793378342 | I69: 0.5050736099 | J69: 0.600726466 | K69: 0.7708425984 | L69: 0.9116155958 | M69: 1.140999051 | N69: 1.164203839 | O69: 1.286905547 | P69: 1.379732633 | Q69: 1.43474291 | R69: 1.57115281 | S69: 1.669409757 | T69: 1.831902646 | U69: 1.912726972 | V69: 1.976651302
A70: 0 | B70: 10000 | C70: 4 | D70: 0 | F70: 0.0116295461 | G70: 0.2064085553 | H70: 0.3805655412 | I70: 0.5072296783 | J70: 0.6021044222 | K70: 0.7738337559 | L70: 0.9126714128 | M70: 1.145036772 | N70: 1.172186453 | O70: 1.294220724 | P70: 1.381355629 | Q70: 1.439800772 | R70: 1.582957441 | S70: 1.671964376 | T70: 1.833573662 | U70: 1.91852527 | V70: 1.981382147
A71: 0 | B71: 15000 | C71: 4 | D71: 0 | F71: 0.01219512195 | G71: 0.2069800991 | H71: 0.38537185 | I71: 0.5077147133 | J71: 0.6046441353 | K71: 0.7771174076 | L71: 0.9220959678 | M71: 1.147644359 | N71: 1.172530864 | O71: 1.294281519 | P71: 1.395509792 | Q71: 1.442031184 | R71: 1.583358583 | S71: 1.67197452 | T71: 1.836047649 | U71: 1.926551417 | V71: 1.983577125
A72: 0 | B72: 20000 | C72: 4 | D72: 0 | F72: 0.0127 | G72: 0.2093963709 | H72: 0.3918538786 | I72: 0.5090556765 | J72: 0.6056456505 | K72: 0.7773975283 | L72: 0.9262824016 | M72: 1.149268311 | N72: 1.173855594 | O72: 1.301616841 | P72: 1.396615735 | Q72: 1.442398237 | R72: 1.584357582 | S72: 1.675892529 | T72: 1.837259907 | U72: 1.927911644 | V72: 1.990628882
A73: 0 | B73: 20000 | C73: 4 | D73: 0 | F73: 0.01333333333 | G73: 0.209482337 | H73: 0.393963081 | I73: 0.5096804979 | J73: 0.6065031993 | K73: 0.7809948197 | L73: 0.9270068038 | M73: 1.149880119 | N73: 1.176531895 | O73: 1.301972393 | P73: 1.397582388 | Q73: 1.445430082 | R73: 1.585462998 | S73: 1.676152984 | T73: 1.837282794 | U73: 1.932563279 | V73: 1.991669879
A74: 0 | B74: 20000 | C74: 4 | D74: 0 | F74: 0.01340782123 | G74: 0.2097784739 | H74: 0.395688559 | I74: 0.50975681 | J74: 0.607478795 | K74: 0.7853320554 | L74: 0.9288257631 | M74: 1.150289048 | N74: 1.177055765 | O74: 1.302708912 | P74: 1.405206467 | Q74: 1.449114004 | R74: 1.585890705 | S74: 1.677701281 | T74: 1.837865937 | U74: 1.941929459 | V74: 1.994479839
A75: 0 | B75: 20000 | C75: 4 | D75: =A75/B75 -> 0 | F75: 0.01365693431 | G75: 0.2097963925 | H75: 0.3974539987 | I75: 0.5097821034 | J75: 0.6117818002 | K75: 0.7865149547 | L75: 0.9310976624 | M75: 1.150455668 | N75: 1.182656349 | O75: 1.302758158 | P75: 1.406527015 | Q75: 1.456392204 | R75: 1.586594834 | S75: 1.679462253 | T75: 1.840899279 | U75: 1.946428448 | V75: 1.995784054
A76: 0 | B76: 20000 | C76: 4 | D76: 0 | F76: 0.01391304348 | G76: 0.2102564103 | H76: 0.4033179724 | I76: 0.5115119959 | J76: 0.613033937 | K76: 0.7879504167 | L76: 0.9360365895 | M76: 1.15266052 | N76: 1.191884362 | O76: 1.305186855 | P76: 1.407274666 | Q76: 1.457365493 | R76: 1.587136573 | S76: 1.679641408 | T76: 1.84110993 | U76: 1.948473683 | V76: 1.997357086
A77: 0 | B77: 20000 | C77: 4 | D77: 0 | F77: 0.01401869159 | G77: 0.2105236987 | H77: 0.4067683486 | I77: 0.5154651689 | J77: 0.6156686876 | K77: 0.7882422065 | L77: 0.9380706428 | M77: 1.154169273 | N77: 1.192073658 | O77: 1.311636181 | P77: 1.410127666 | Q77: 1.460515281 | R77: 1.590617281 | S77: 1.683274689 | T77: 1.843352932 | U77: 1.949998658 | V77: 1.998216374
A78: 0 | B78: 25000 | C78: 4 | D78: 0 | F78: 0.01526838337 | G78: 0.2109074483 | H78: 0.4081997255 | I78: 0.5203833853 | J78: 0.615707734 | K78: 0.7886802282 | L78: 0.9438389421 | M78: 1.154859634 | N78: 1.197658914 | O78: 1.318563353 | P78: 1.41202192 | Q78: 1.461084671 | R78: 1.593197527 | S78: 1.683768935 | T78: 1.850804122 | U78: 1.951272899 | V78: 2.000253613
A79: 0 | B79: 25000 | C79: 4 | D79: 0 | F79: 0.01693684211 | G79: 0.2120924855 | H79: 0.4089014179 | I79: 0.5206716546 | J79: 0.630416423 | K79: 0.7907943864 | L79: 0.9450893003 | M79: 1.156442019 | N79: 1.199412469 | O79: 1.320560167 | P79: 1.413847227 | Q79: 1.464412006 | R79: 1.600556079 | S79: 1.685909093 | T79: 1.854779439 | U79: 1.952089945 | V79: 2.003230397
A80: 0 | B80: 75000 | C80: 4 | D80: 0 | F80: 0.018482 | G80: 0.2121410419 | H80: 0.4121143248 | I80: 0.5227028501 | J80: 0.6312746755 | K80: 0.7930458672 | L80: 0.9456910277 | M80: 1.158707434 | N80: 1.200307901 | O80: 1.327911265 | P80: 1.418042412 | Q80: 1.472168793 | R80: 1.600837587 | S80: 1.689310307 | T80: 1.855153362 | U80: 1.954576204 | V80: 2.004930927
A81: 0 | B81: 100000 | C81: 4 | D81: 0 | F81: 0.01856153846 | G81: 0.2149110338 | H81: 0.4130632882 | I81: 0.5233726926 | J81: 0.6318825468 | K81: 0.7948500342 | L81: 0.9466418592 | M81: 1.158883099 | N81: 1.208757936 | O81: 1.328681708 | P81: 1.419590765 | Q81: 1.472691195 | R81: 1.602297133 | S81: 1.689547883 | T81: 1.86092792 | U81: 1.954675815 | V81: 2.006290383
A82: 0 | B82: 100000 | C82: 4 | D82: 0 | F82: 0.01903409091 | G82: 0.2157637032 | H82: 0.4135125251 | I82: 0.5256419606 | J82: 0.6353089296 | K82: 0.7953669444 | L82: 0.9503926227 | M82: 1.161833504 | N82: 1.215179936 | O82: 1.33180229 | P82: 1.419971463 | Q82: 1.47582131 | R82: 1.604326504 | S82: 1.690608217 | T82: 1.861486041 | U82: 1.956552177 | V82: 2.007462692
A83: 0 | B83: 100000 | C83: 4 | D83: 0 | F83: 0.02060301508 | G83: 0.2161334217 | H83: 0.4159906527 | I83: 0.5283868377 | J83: 0.6398106241 | K83: 0.7982434542 | L83: 0.9519329576 | M83: 1.167395294 | N83: 1.218123175 | O83: 1.335912109 | P83: 1.420064999 | Q83: 1.480428576 | R83: 1.607845804 | S83: 1.694032975 | T83: 1.864328126 | U83: 1.959471307 | V83: 2.009254468
A84: 0 | B84: 150000 | C84: 4 | D84: 0 | F84: 0.02285714286 | G84: 0.2265844068 | H84: 0.418844246 | I84: 0.5301554932 | J84: 0.6411128551 | K84: 0.803059167 | L84: 0.9555935038 | M84: 1.168091847 | N84: 1.222656067 | O84: 1.337445141 | P84: 1.429926784 | Q84: 1.480918346 | R84: 1.608090323 | S84: 1.694588793 | T84: 1.8651211 | U84: 1.963560453 | V84: 2.009664321
A85: 0 | B85: 50000 | C85: 5 | D85: 0 | F85: 0.02311063886 | G85: 0.2266728548 | H85: 0.4203210627 | I85: 0.5317744625 | J85: 0.6412961758 | K85: 0.8042001258 | L85: 0.9584376486 | M85: 1.168408909 | N85: 1.223032207 | O85: 1.340245137 | P85: 1.432697004 | Q85: 1.481183361 | R85: 1.608945811 | S85: 1.699200244 | T85: 1.865224394 | U85: 1.964879341 | V85: 2.010744173
A86: 0 | B86: 23000 | C86: 5 | D86: 0 | F86: 0.024 | G86: 0.2267040786 | H86: 0.421103149 | I86: 0.5360902105 | J86: 0.6414996953 | K86: 0.8105243913 | L86: 0.9600529696 | M86: 1.169642227 | N86: 1.229385693 | O86: 1.34283063 | P86: 1.436052371 | Q86: 1.48326364 | R86: 1.612004417 | S86: 1.704854296 | T86: 1.865409503 | U86: 1.96628387 | V86: 2.016689606
A87: 0 | B87: 25000 | C87: 5 | D87: 0 | F87: 0.0243902439 | G87: 0.2283098991 | H87: 0.4215345021 | I87: 0.5374068135 | J87: 0.6423106817 | K87: 0.8110565994 | L87: 0.9641543776 | M87: 1.169670837 | N87: 1.230959661 | O87: 1.347684245 | P87: 1.439198832 | Q87: 1.488855985 | R87: 1.615775188 | S87: 1.707195721 | T87: 1.867115748 | U87: 1.968785087 | V87: 2.017505232
A88: 0 | B88: 25000 | C88: 5 | D88: 0 | F88: 0.02495824176 | G88: 0.2292407109 | H88: 0.4217490677 | I88: 0.5385305313 | J88: 0.6452200966 | K88: 0.8126325289 | L88: 0.965370213 | M88: 1.170917515 | N88: 1.237615948 | O88: 1.358066019 | P88: 1.444663878 | Q88: 1.49094926 | R88: 1.618551854 | S88: 1.708900604 | T88: 1.868181505 | U88: 1.969504243 | V88: 2.018390143
A89: 0 | B89: 25000 | C89: 5 | D89: 0 | F89: 0.02666666667 | G89: 0.2296302401 | H89: 0.4223538522 | I89: 0.5386994243 | J89: 0.6458198253 | K89: 0.8157693846 | L89: 0.9666585145 | M89: 1.177534735 | N89: 1.240861519 | O89: 1.360481298 | P89: 1.445063672 | Q89: 1.491003769 | R89: 1.618632766 | S89: 1.716952218 | T89: 1.869857748 | U89: 1.970551053 | V89: 2.019785056
A90: 0 | B90: 25000 | C90: 5 | D90: 0 | F90: 0.02681111111 | G90: 0.2302587036 | H90: 0.4227076391 | I90: 0.5390492795 | J90: 0.6494733726 | K90: 0.8189748898 | L90: 0.9760491333 | M90: 1.178035645 | N90: 1.241756854 | O90: 1.366765453 | P90: 1.449848196 | Q90: 1.501351301 | R90: 1.619449599 | S90: 1.719013286 | T90: 1.870737047 | U90: 1.972488438 | V90: 2.026305853
A91: 0 | B91: 25000 | C91: 5 | D91: 0 | F91: 0.02712307845 | G91: 0.2342769315 | H91: 0.4231304054 | I91: 0.5429343327 | J91: 0.6530144284 | K91: 0.8195969302 | L91: 0.9778682151 | M91: 1.182494616 | N91: 1.243635429 | O91: 1.36804798 | P91: 1.449892351 | Q91: 1.510223276 | R91: 1.621810072 | S91: 1.720461181 | T91: 1.872339824 | U91: 1.974432259 | V91: 2.028075875
A92: 0 | B92: 50000 | C92: 5 | D92: 0 | F92: 0.02737746673 | G92: 0.2346372549 | H92: 0.4240607336 | I92: 0.5432891089 | J92: 0.6551064685 | K92: 0.820391903 | L92: 0.9829217271 | M92: 1.185692031 | N92: 1.244776036 | O92: 1.368873883 | P92: 1.451751836 | Q92: 1.513228526 | R92: 1.625427506 | S92: 1.723216797 | T92: 1.872381759 | U92: 1.975607856 | V92: 2.028105968
A93: 0 | B93: 275000 | C93: 6 | D93: 0 | F93: 0.02807017544 | G93: 0.2347940374 | H93: 0.4247985 | I93: 0.549270524 | J93: 0.6579958295 | K93: 0.8205475752 | L93: 0.9839339114 | M93: 1.189546467 | N93: 1.249441899 | O93: 1.37102163 | P93: 1.452250517 | Q93: 1.514339069 | R93: 1.628636354 | S93: 1.72332186 | T93: 1.875243011 | U93: 1.977130864 | V93: 2.029739529
A94: 0 | B94: 25000 | C94: 7 | D94: 0 | F94: 0.02891566265 | G94: 0.23488937 | H94: 0.4250529724 | I94: 0.5501503145 | J94: 0.6587753128 | K94: 0.8234322888 | L94: 0.9855202656 | M94: 1.190561501 | N94: 1.253308801 | O94: 1.376800027 | P94: 1.455968188 | Q94: 1.51571274 | R94: 1.630344551 | S94: 1.727629229 | T94: 1.880939098 | U94: 1.982580181 | V94: 2.030126671
A95: 0 | B95: 10000 | C95: 8 | D95: 0 | F95: 0.029652 | G95: 0.2349608659 | H95: 0.4254653326 | I95: 0.5569316025 | J95: 0.6597397382 | K95: 0.8237684525 | L95: 0.991076619 | M95: 1.1926302 | N95: 1.253418209 | O95: 1.377059641 | P95: 1.459786233 | Q95: 1.519725529 | R95: 1.630868721 | S95: 1.727832883 | T95: 1.885079718 | U95: 1.984546956 | V95: 2.036957595
A96: 0 | B96: 10000 | C96: 10 | D96: 0 | F96: 0.02997275204 | G96: 0.2370577916 | H96: 0.4266383459 | I96: 0.5569720899 | J96: 0.6603752208 | K96: 0.8238042156 | L96: 0.9978395819 | M96: 1.197852408 | N96: 1.257263424 | O96: 1.379310787 | P96: 1.468493552 | Q96: 1.525980778 | R96: 1.631289542 | S96: 1.731537855 | T96: 1.887717604 | U96: 1.986171106 | V96: 2.038656608
A97: 1 | B97: 500000 | C97: 6 | D97: 2e-06 | F97: 0.03060098324 | G97: 0.2386041609 | H97: 0.4270760559 | I97: 0.5580401309 | J97: 0.6606543579 | K97: 0.8293101614 | L97: 0.9997256649 | M97: 1.198624732 | N97: 1.257500988 | O97: 1.384695909 | P97: 1.468823442 | Q97: 1.528157217 | R97: 1.633033481 | S97: 1.737324754 | T97: 1.893239119 | U97: 1.986967428 | V97: 2.041617374
A98: 1000 | B98: 12000 | C98: 3 | D98: 0.08333333333 | F98: 0.03119264415 | G98: 0.2396262673 | H98: 0.4299435309 | I98: 0.5582604776 | J98: 0.6625861911 | K98: 0.8308453674 | L98: 1.005279238 | M98: 1.199095282 | N98: 1.258214079 | O98: 1.386412045 | P98: 1.474478962 | Q98: 1.530970063 | R98: 1.636919611 | S98: 1.741371633 | T98: 1.895214285 | U98: 1.98825719 | V98: 2.042493371
A99: 4100 | B99: 49000 | C99: 2 | D99: 0.08367346939 | F99: 0.03264112645 | G99: 0.2412661113 | H99: 0.4313270679 | I99: 0.5613366105 | J99: 0.6628724816 | K99: 0.8357047583 | L99: 1.006518663 | M99: 1.205681828 | N99: 1.260552631 | O99: 1.387599312 | P99: 1.474773627 | Q99: 1.532837 | R99: 1.638632017 | S99: 1.743016369 | T99: 1.896453704 | U99: 1.991399336 | V99: 2.042720499
A100: 2400 | B100: 25000 | C100: 2 | D100: 0.096 | F100: 0.03421052632 | G100: 0.243864098 | H100: 0.4324876922 | I100: 0.5735728296 | J100: 0.6656488329 | K100: 0.8365315183 | L100: 1.006707577 | M100: 1.210902746 | N100: 1.261540149 | O100: 1.391081839 | P100: 1.478437238 | Q100: 1.535667104 | R100: 1.638994238 | S100: 1.754871247 | T100: 1.900018887 | U100: 1.994077459 | V100: 2.042827258
A101: 2400 | B101: 24000 | C101: 1 | D101: 0.1 | F101: 0.03446705255 | G101: 0.2446264934 | H101: 0.4333182923 | I101: 0.5781063911 | J101: 0.6695090689 | K101: 0.8433883801 | L101: 1.00713853 | M101: 1.215905168 | N101: 1.263364889 | O101: 1.391507138 | P101: 1.482236291 | Q101: 1.539654035 | R101: 1.639575459 | S101: 1.756089429 | T101: 1.902410598 | U101: 1.997156114 | V101: 2.045575589
A102: 1600 | B102: 16000 | C102: 2 | D102: 0.1 | F102: 0.03650543478 | G102: 0.2457725181 | H102: 0.4337823845 | I102: 0.5793265125 | J102: 0.671870624 | K102: 0.844614048 | L102: 1.010049751 | M102: 1.218298399 | N102: 1.267254456 | O102: 1.397692759 | P102: 1.483988229 | Q102: 1.541050981 | R102: 1.6409628 | S102: 1.758721156 | T102: 1.906547685 | U102: 2.00165856 | V102: 2.051899434
A103: 4900 | B103: 49000 | C103: 2 | D103: 0.1 | F103: 0.03652202849 | G103: 0.24584056 | H103: 0.4346286929 | I103: 0.5841940247 | J103: 0.6752456878 | K103: 0.8459590143 | L103: 1.01044712 | M103: 1.219976779 | N103: 1.269114259 | O103: 1.398783423 | P103: 1.484885964 | Q103: 1.545700753 | R103: 1.641049146 | S103: 1.761982078 | T103: 1.909761352 | U103: 2.004428644 | V103: 2.05632504
A104: 2500 | B104: 25000 | C104: 4 | D104: 0.1 | F104: 0.03712307692 | G104: 0.2464211355 | H104: 0.4350969711 | I104: 0.5878719398 | J104: 0.6831664343 | K104: 0.849612823 | L104: 1.013787428 | M104: 1.223884274 | N104: 1.269163285 | O104: 1.399959042 | P104: 1.491763613 | Q104: 1.546283622 | R104: 1.643961462 | S104: 1.762146524 | T104: 1.912452218 | U104: 2.005757082 | V104: 2.060225218
A105: 5000 | B105: 50000 | C105: 4 | D105: 0.1 | F105: 0.03751487414 | G105: 0.252521021 | H105: 0.4396947771 | I105: 0.5882262062 | J105: 0.6859283544 | K105: 0.8496515324 | L105: 1.014815286 | M105: 1.226187504 | N105: 1.273024915 | O105: 1.400037699 | P105: 1.493149363 | Q105: 1.546966758 | R105: 1.645227267 | S105: 1.763189411 | T105: 1.916766019 | U105: 2.006104367 | V105: 2.063596034
A106: 12000 | B106: 100000 | C106: 2 | D106: 0.12 | F106: 0.03781456062 | G106: 0.2555662949 | H106: 0.4411433532 | I106: 0.5896653865 | J106: 0.6861623636 | K106: 0.8502090321 | L106: 1.015563523 | M106: 1.226882223 | N106: 1.277181475 | O106: 1.400606248 | P106: 1.49332675 | Q106: 1.547895964 | R106: 1.645459888 | S106: 1.764141599 | T106: 1.920932709 | U106: 2.007241346 | V106: 2.063597784
A107: 5000 | B107: 35000 | C107: 2 | D107: 0.1428571429 | F107: 0.03785333333 | G107: 0.2582749465 | H107: 0.4416210419 | I107: 0.5990437436 | J107: 0.6872984154 | K107: 0.8517896548 | L107: 1.016966488 | M107: 1.227542288 | N107: 1.284956539 | O107: 1.400634264 | P107: 1.495745154 | Q107: 1.551516874 | R107: 1.646664601 | S107: 1.764462055 | T107: 1.926204196 | U107: 2.008649631 | V107: 2.06391059
A108: 1600 | B108: 10000 | C108: 1 | D108: 0.16 | F108: 0.03810652892 | G108: 0.2591282519 | H108: 0.4421738551 | I108: 0.5990574599 | J108: 0.6896298136 | K108: 0.8537356874 | L108: 1.017180682 | M108: 1.23147195 | N108: 1.290814595 | O108: 1.409181588 | P108: 1.496288309 | Q108: 1.552726942 | R108: 1.649466852 | S108: 1.772048328 | T108: 1.926484013 | U108: 2.009411918 | V108: 2.06889837
A109: 1600 | B109: 10000 | C109: 1 | D109: 0.16 | F109: 0.03822393822 | G109: 0.2602053571 | H109: 0.4437212992 | I109: 0.6011764466 | J109: 0.6898255885 | K109: 0.8554392797 | L109: 1.018239279 | M109: 1.231515153 | N109: 1.295052672 | O109: 1.415126312 | P109: 1.497307809 | Q109: 1.552976197 | R109: 1.649527143 | S109: 1.772726233 | T109: 1.92650757 | U109: 2.009876369 | V109: 2.073019534
A110: 1600 | B110: 10000 | C110: 1 | D110: 0.16 | F110: 0.03846153846 | G110: 0.2627326147 | H110: 0.4445912367 | I110: 0.6031177764 | J110: 0.6915556655 | K110: 0.8561234874 | L110: 1.022062994 | M110: 1.233479712 | N110: 1.296050301 | O110: 1.415280687 | P110: 1.503448816 | Q110: 1.55504869 | R110: 1.650341081 | S110: 1.77391568 | T110: 1.926612081 | U110: 2.010714583 | V110: 2.076061681
A111: 2413 | B111: 15000 | C111: 2 | D111: 0.1608666667 | F111: 0.03939253731 | G111: 0.2627493935 | H111: 0.4454006865 | I111: 0.6034772466 | J111: 0.6927236969 | K111: 0.8594158005 | L111: 1.022458901 | M111: 1.23532303 | N111: 1.298643836 | O111: 1.418226961 | P111: 1.503551573 | Q111: 1.55795032 | R111: 1.65927703 | S111: 1.775402651 | T111: 1.929708615 | U111: 2.012837677 | V111: 2.078289246
A112: 2413 | B112: 15000 | C112: 2 | D112: 0.1608666667 | F112: 0.03944990366 | G112: 0.2632517042 | H112: 0.4503784381 | I112: 0.6088233503 | J112: 0.6947942878 | K112: 0.8613211369 | L112: 1.025879052 | M112: 1.235518519 | N112: 1.298658323 | O112: 1.420913044 | P112: 1.503729264 | Q112: 1.559521705 | R112: 1.660019877 | S112: 1.775971163 | T112: 1.930659787 | U112: 2.013705772 | V112: 2.080334372
A113: 2413 | B113: 15000 | C113: 2 | D113: 0.1608666667 | F113: 0.03974757523 | G113: 0.2641086038 | H113: 0.451660215 | I113: 0.6091923177 | J113: 0.6951384866 | K113: 0.8629582984 | L113: 1.026812128 | M113: 1.23611866 | N113: 1.300598735 | O113: 1.421180035 | P113: 1.504516992 | Q113: 1.559648928 | R113: 1.660064883 | S113: 1.780656056 | T113: 1.938965644 | U113: 2.020844599 | V113: 2.081136109
A114: 2413 | B114: 15000 | C114: 2 | D114: 0.1608666667 | F114: 0.04129752663 | G114: 0.2692351695 | H114: 0.4516962654 | I114: 0.6096510351 | J114: 0.700171123 | K114: 0.8636581151 | L114: 1.034248196 | M114: 1.237410217 | N114: 1.30097471 | O114: 1.423474145 | P114: 1.508955269 | Q114: 1.568157913 | R114: 1.660157754 | S114: 1.78229851 | T114: 1.940742804 | U114: 2.021456219 | V114: 2.08204675
A115: 3218 | B115: 20000 | C115: 2 | D115: 0.1609 | F115: 0.04210526316 | G115: 0.2702828476 | H115: 0.4557679079 | I115: 0.6100765626 | J115: 0.7054936271 | K115: 0.8650168814 | L115: 1.036729981 | M115: 1.240236735 | N115: 1.301297922 | O115: 1.424049811 | P115: 1.511785691 | Q115: 1.568445922 | R115: 1.665456983 | S115: 1.782433164 | T115: 1.94132649 | U115: 2.02249261 | V115: 2.085812031
A116: 4500 | B116: 23090 | C116: 2 | D116: 0.1948895626 | F116: 0.04359438499 | G116: 0.2709480453 | H116: 0.4590214315 | I116: 0.6109222204 | J116: 0.7085408279 | K116: 0.8657354654 | L116: 1.036781598 | M116: 1.242901075 | N116: 1.301914133 | O116: 1.42706472 | P116: 1.5149472 | Q116: 1.574471701 | R116: 1.665990248 | S116: 1.783976963 | T116: 1.944011651 | U116: 2.024540447 | V116: 2.092122998
A117: 2000 | B117: 10000 | C117: 5 | D117: 0.2 | F117: 0.0437959596 | G117: 0.2718884825 | H117: 0.4593877682 | I117: 0.6152951666 | J117: 0.7096722866 | K117: 0.8662640708 | L117: 1.03949503 | M117: 1.244523134 | N117: 1.301972693 | O117: 1.429717989 | P117: 1.520562641 | Q117: 1.574799227 | R117: 1.667083001 | S117: 1.784160881 | T117: 1.945428107 | U117: 2.027473069 | V117: 2.093485884
A118: 8375 | B118: 40000 | C118: 2 | D118: 0.209375 | F118: 0.04446657892 | G118: 0.2740070755 | H118: 0.46024833 | I118: 0.6175924934 | J118: 0.7097989486 | K118: 0.8677066258 | L118: 1.041565161 | M118: 1.248994956 | N118: 1.302470539 | O118: 1.430793047 | P118: 1.520849619 | Q118: 1.576575092 | R118: 1.667572354 | S118: 1.787989471 | T118: 1.947333562 | U118: 2.031051571 | V118: 2.093759349
A119: 128000 | B119: 525000 | C119: 1 | D119: 0.2438095238 | F119: 0.04462524655 | G119: 0.2748438742 | H119: 0.4613348518 | I119: 0.6186095293 | J119: 0.7110646398 | K119: 0.8705888085 | L119: 1.052009596 | M119: 1.249176205 | N119: 1.306575943 | O119: 1.431387429 | P119: 1.521879261 | Q119: 1.580452046 | R119: 1.667995705 | S119: 1.789326724 | T119: 1.947590221 | U119: 2.032148067 | V119: 2.093938392
A120: 7001 | B120: 25000 | C120: 3 | D120: 0.28004 | F120: 0.04539408284 | G120: 0.2754794448 | H120: 0.4616827859 | I120: 0.6214124097 | J120: 0.7110664396 | K120: 0.8731140429 | L120: 1.055364348 | M120: 1.250003078 | N120: 1.307049827 | O120: 1.434159434 | P120: 1.528101392 | Q120: 1.582784601 | R120: 1.668865319 | S120: 1.790497791 | T120: 1.951513068 | U120: 2.032207018 | V120: 2.098653436
A121: 83320 | B121: 288396 | C121: 3 | D121: 0.2889083066 | F121: 0.04668869558 | G121: 0.2759051491 | H121: 0.4629617721 | I121: 0.6217040903 | J121: 0.7125728741 | K121: 0.8735193268 | L121: 1.059453699 | M121: 1.252374412 | N121: 1.309357494 | O121: 1.435082291 | P121: 1.528583576 | Q121: 1.583028058 | R121: 1.669850051 | S121: 1.790603996 | T121: 1.952129349 | U121: 2.033379933 | V121: 2.098907935
A122: 51000 | B122: 100000 | C122: 5 | D122: 0.51 | F122: 0.04695652174 | G122: 0.2765484894 | H122: 0.4651617195 | I122: 0.622232132 | J122: 0.7140636761 | K122: 0.8756694266 | L122: 1.060155584 | M122: 1.252654174 | N122: 1.309651311 | O122: 1.436874354 | P122: 1.528845759 | Q122: 1.585242156 | R122: 1.672866314 | S122: 1.790783929 | T122: 1.95245861 | U122: 2.034611484 | V122: 2.101322288
A123: 421930 | B123: 826700 | C123: 8 | D123: 0.5103786138 | F123: 0.0497 | G123: 0.2811584207 | H123: 0.4662907437 | I123: 0.6293200626 | J123: 0.7164008617 | K123: 0.8849742904 | L123: 1.062636557 | M123: 1.252864169 | N123: 1.312191074 | O123: 1.437172139 | P123: 1.530006545 | Q123: 1.587267682 | R123: 1.673735151 | S123: 1.796150509 | T123: 1.953932717 | U123: 2.036040152 | V123: 2.101986369
A124: 12500 | B124: 24000 | C124: 5 | D124: 0.5208333333 | F124: 0.0509859946 | G124: 0.2865013292 | H124: 0.4698110821 | I124: 0.6297324965 | J124: 0.7173759137 | K124: 0.8868567693 | L124: 1.064797966 | M124: 1.257516967 | N124: 1.314244161 | O124: 1.438457 | P124: 1.530046803 | Q124: 1.588331515 | R124: 1.67457484 | S124: 1.796206418 | T124: 1.956381082 | U124: 2.036107454 | V124: 2.107845096
A125: 553633 | B125: 1040000 | C125: 0 | D125: 0.5323394231 | F125: 0.05126582278 | G125: 0.2879046512 | H125: 0.4724585087 | I125: 0.6298910891 | J125: 0.719072256 | K125: 0.8871778291 | L125: 1.066388449 | M125: 1.265070482 | N125: 1.3144135 | O125: 1.440025861 | P125: 1.530667732 | Q125: 1.589946758 | R125: 1.675020656 | S125: 1.796339244 | T125: 1.957784462 | U125: 2.040019886 | V125: 2.109105635
A126: 426250 | B126: 775000 | C126: 0 | D126: 0.55 | F126: 0.05226059501 | G126: 0.2879298646 | H126: 0.473573741 | I126: 0.6306768687 | J126: 0.7227784839 | K126: 0.8873045002 | L126: 1.067265496 | M126: 1.26573804 | N126: 1.314803322 | O126: 1.441316345 | P126: 1.533063648 | Q126: 1.593014553 | R126: 1.675103802 | S126: 1.802306778 | T126: 1.959502308 | U126: 2.041072308 | V126: 2.110616787
A127: 12826 | B127: 23091 | C127: 2 | D127: 0.5554545061 | F127: 0.05305926647 | G127: 0.2899067078 | H127: 0.4745949409 | I127: 0.6339024397 | J127: 0.7273047224 | K127: 0.8883648448 | L127: 1.06747608 | M127: 1.266753154 | N127: 1.315458865 | O127: 1.442099367 | P127: 1.533698121 | Q127: 1.59678578 | R127: 1.677863688 | S127: 1.802957918 | T127: 1.959515052 | U127: 2.042508596 | V127: 2.113755086
A128: 17101 | B128: 30787 | C128: 2 | D128: 0.5554617209 | F128: 0.05345687812 | G128: 0.2907572559 | H128: 0.4750744364 | I128: 0.6357294629 | J128: 0.7295532608 | K128: 0.8898212201 | L128: 1.067510424 | M128: 1.266841538 | N128: 1.315687123 | O128: 1.442334446 | P128: 1.533800794 | Q128: 1.598679318 | R128: 1.678055258 | S128: 1.803592146 | T128: 1.96056891 | U128: 2.042860259 | V128: 2.117124214
A129: 8551 | B129: 15394 | C129: 2 | D129: 0.5554761595 | F129: 0.05388105263 | G129: 0.2921247544 | H129: 0.4763812066 | I129: 0.6366017115 | J129: 0.7372739279 | K129: 0.8920221233 | L129: 1.069144774 | M129: 1.268045707 | N129: 1.31663325 | O129: 1.442416336 | P129: 1.535110245 | Q129: 1.599249911 | R129: 1.678878757 | S129: 1.808804934 | T129: 1.963727525 | U129: 2.043549087 | V129: 2.119894593
A130: 21377 | B130: 38484 | C130: 2 | D130: 0.5554776011 | F130: 0.05396527891 | G130: 0.2926754864 | H130: 0.4776287383 | I130: 0.6388483028 | J130: 0.7378462793 | K130: 0.8923501391 | L130: 1.071157331 | M130: 1.26857864 | N130: 1.318296405 | O130: 1.443534286 | P130: 1.535520577 | Q130: 1.601206874 | R130: 1.6795188 | S130: 1.809243953 | T130: 1.964727444 | U130: 2.043608935 | V130: 2.122425974
A131: 19179 | B131: 25000 | C131: 7 | D131: 0.76716 | F131: 0.05749223411 | G131: 0.2940354337 | H131: 0.4794927882 | I131: 0.640324488 | J131: 0.7385787736 | K131: 0.8940729209 | L131: 1.074659087 | M131: 1.272141163 | N131: 1.3202271 | O131: 1.446615694 | P131: 1.536219083 | Q131: 1.603095252 | R131: 1.68019344 | S131: 1.809302565 | T131: 1.96530408 | U131: 2.043819763 | V131: 2.122755277
A132: 19179 | B132: 25000 | C132: 7 | D132: 0.76716 | F132: 0.05767464789 | G132: 0.2943140459 | H132: 0.4797712813 | I132: 0.6405239233 | J132: 0.7387531078 | K132: 0.8955059495 | L132: 1.076375272 | M132: 1.277085261 | N132: 1.320892062 | O132: 1.446667788 | P132: 1.536547543 | Q132: 1.606647253 | R132: 1.68082455 | S132: 1.810715044 | T132: 1.965765381 | U132: 2.044054578 | V132: 2.127900264
A133: 19179 | B133: 25000 | C133: 7 | D133: 0.76716 | F133: 0.059128 | G133: 0.2947759414 | H133: 0.4807736216 | I133: 0.640613614 | J133: 0.7400924657 | K133: 0.8986058382 | L133: 1.076762002 | M133: 1.277119573 | N133: 1.321690275 | O133: 1.450590991 | P133: 1.542065188 | Q133: 1.608367319 | R133: 1.683221335 | S133: 1.810754526 | T133: 1.96667998 | U133: 2.046377633 | V133: 2.132682664
A134: 19179 | B134: 25000 | C134: 7 | D134: 0.76716 | F134: 0.05961221122 | G134: 0.2976602941 | H134: 0.4834623059 | I134: 0.6408606065 | J134: 0.7422574201 | K134: 0.8991417732 | L134: 1.082176101 | M134: 1.280752487 | N134: 1.321770838 | O134: 1.450603897 | P134: 1.542130783 | Q134: 1.611042944 | R134: 1.685529249 | S134: 1.811588808 | T134: 1.968425876 | U134: 2.048941628 | V134: 2.133333809
A135: 41400 | B135: 50000 | C135: 0 | D135: 0.828 | F135: 0.06032063492 | G135: 0.2981984292 | H135: 0.4851273137 | I135: 0.6427896373 | J135: 0.7460012203 | K135: 0.8998347716 | L135: 1.082855369 | M135: 1.282739206 | N135: 1.325886765 | O135: 1.45328779 | P135: 1.542472202 | Q135: 1.611351888 | R135: 1.686793747 | S135: 1.812738865 | T135: 1.968569862 | U135: 2.049943519 | V135: 2.13524863
A136: 13482 | B136: 15000 | C136: 2 | D136: 0.8988 | F136: 0.06088571429 | G136: 0.2987426298 | H136: 0.4899164879 | I136: 0.6466238222 | J136: 0.7462166917 | K136: 0.9006720608 | L136: 1.083805786 | M136: 1.284294168 | N136: 1.326633932 | O136: 1.454062231 | P136: 1.543986136 | Q136: 1.612641831 | R136: 1.6876235 | S136: 1.814649994 | T136: 1.969853807 | U136: 2.054264323 | V136: 2.136346927
A137: 24000 | B137: 25000 | C137: 2 | D137: 0.96 | F137: 0.0616568915 | G137: 0.2996281591 | H137: 0.4916755001 | I137: 0.6467647742 | J137: 0.7476485981 | K137: 0.9017439709 | L137: 1.085013975 | M137: 1.292341187 | N137: 1.329862587 | O137: 1.454290873 | P137: 1.54785159 | Q137: 1.614810866 | R137: 1.688133075 | S137: 1.816195325 | T137: 1.971278294 | U137: 2.056039782 | V137: 2.136649606
A138: 39095 | B138: 40000 | C138: 2 | D138: 0.977375 | F138: 0.06270581187 | G138: 0.2998652291 | H138: 0.4923624875 | I138: 0.6469063936 | J138: 0.7481531024 | K138: 0.9027339743 | L138: 1.086037607 | M138: 1.292356613 | N138: 1.329876645 | O138: 1.455516422 | P138: 1.550637026 | Q138: 1.618505899 | R138: 1.688361729 | S138: 1.820738309 | T138: 1.973858554 | U138: 2.057786669 | V138: 2.137041215
A139: 98707 | B139: 100000 | C139: 2 | D139: =A139/B139 -> 0.98707 | F139: 0.06289308176 | G139: 0.2999907502 | H139: 0.4924666667 | I139: 0.6487575439 | J139: 0.7488940807 | K139: 0.9064774413 | L139: 1.08662326 | M139: 1.294042888 | N139: 1.333492343 | O139: 1.455609632 | P139: 1.550702244 | Q139: 1.618559728 | R139: 1.689318642 | S139: 1.821797613 | T139: 1.979837354 | U139: 2.059502618 | V139: 2.138466116
A140: 3620 | B140: 3620 | C140: 1 | D140: 1 | F140: 0.06434316354 | G140: 0.3014306033 | H140: 0.4926658562 | I140: 0.6488369474 | J140: 0.7508195481 | K140: 0.9085882901 | L140: 1.089700463 | M140: 1.295571043 | N140: 1.333509177 | O140: 1.456687895 | P140: 1.551992053 | Q140: 1.620443625 | R140: 1.691707267 | S140: 1.821877666 | T140: 1.980429156 | U140: 2.060858837 | V140: 2.138475432
A141: 10000 | B141: 10000 | C141: 6 | D141: 1 | F141: 0.06455777921 | G141: 0.3044898689 | H141: 0.4928018392 | I141: 0.6494042979 | J141: 0.7513731337 | K141: 0.9113666795 | L141: 1.090869964 | M141: 1.296177427 | N141: 1.333541064 | O141: 1.458613827 | P141: 1.553263834 | Q141: 1.620529765 | R141: 1.69386482 | S141: 1.825105838 | T141: 1.980570661 | U141: 2.062324901 | V141: 2.138574399
A142: 201292 | B142: 200000 | C142: 2 | D142: 1.00646 | F142: 0.06552737281 | G142: 0.3048662651 | H142: 0.4928101045 | I142: 0.6508363045 | J142: 0.7540747359 | K142: 0.9119579172 | L142: 1.096122487 | M142: 1.297813572 | N142: 1.336257828 | O142: 1.458835236 | P142: 1.553978758 | Q142: 1.620550036 | R142: 1.693911151 | S142: 1.826657365 | T142: 1.980749556 | U142: 2.062355253 | V142: 2.138893221
A143: 55000 | B143: 50000 | C143: 4 | D143: 1.1 | F143: 0.06608137194 | G143: 0.3061254545 | H143: 0.495240228 | I143: 0.6530608312 | J143: 0.7545478911 | K143: 0.9139591661 | L143: 1.099428882 | M143: 1.30167302 | N143: 1.343247304 | O143: 1.459558082 | P143: 1.557457148 | Q143: 1.621020785 | R143: 1.697254783 | S143: 1.827948905 | T143: 1.982714885 | U143: 2.062538162 | V143: 2.140360934
A144: 33585 | B144: 30000 | C144: 6 | D144: 1.1195 | F144: 0.06763577236 | G144: 0.3074076715 | H144: 0.4957300271 | I144: 0.6542888467 | J144: 0.756330714 | K144: 0.9151249087 | L144: 1.104360457 | M144: 1.303350661 | N144: 1.348736698 | O144: 1.460792493 | P144: 1.558697409 | Q144: 1.623287562 | R144: 1.697435809 | S144: 1.829961705 | T144: 1.984621001 | U144: 2.06333965 | V144: 2.141038144
A145: 36720 | B145: 30787 | C145: 2 | D145: 1.192711209 | F145: 0.06779661017 | G145: 0.3087706915 | H145: 0.4972134609 | I145: 0.6579011429 | J145: 0.7579093061 | K145: 0.9159145133 | L145: 1.104542354 | M145: 1.304354559 | N145: 1.350501958 | O145: 1.462633129 | P145: 1.559158725 | Q145: 1.623408375 | R145: 1.698320008 | S145: 1.830073247 | T145: 1.987194616 | U145: 2.063975447 | V145: 2.14359307
A146: 210000 | B146: 175000 | C146: 1 | D146: 1.2 | F146: 0.06784810127 | G146: 0.3099002991 | H146: 0.4996965325 | I146: 0.6585582154 | J146: 0.7609721925 | K146: 0.9183478478 | L146: 1.105427507 | M146: 1.308292925 | N146: 1.352558103 | O146: 1.464528695 | P146: 1.559492107 | Q146: 1.624275197 | R146: 1.701340506 | S146: 1.831449653 | T146: 1.987560913 | U146: 2.064011646 | V146: 2.14360682
A147: 93715 | B147: 75000 | C147: 2 | D147: 1.249533333 | F147: 0.06857142857 | G147: 0.3114262485 | H147: 0.5018460405 | I147: 0.6614164435 | J147: 0.7611907056 | K147: 0.9202639672 | L147: 1.108022406 | M147: 1.310106625 | N147: 1.352678574 | O147: 1.466972962 | P147: 1.56283162 | Q147: 1.630646401 | R147: 1.70300622 | S147: 1.831658322 | T147: 1.987602775 | U147: 2.064424956 | V147: 2.145093333
A148: 580000 | B148: 420000 | C148: 8 | D148: 1.380952381 | F148: 0.06861394102 | G148: 0.3136748879 | H148: 0.50227051 | I148: 0.6618159323 | J148: 0.7617563833 | K148: 0.9254733247 | L148: 1.108527205 | M148: 1.312563518 | N148: 1.352879237 | O148: 1.468712206 | P148: 1.562832233 | Q148: 1.632409533 | R148: 1.704320806 | S148: 1.831891944 | T148: 1.988539497 | U148: 2.06761985 | V148: 2.147047273
A149: 140000 | B149: 100000 | C149: 1 | D149: 1.4 | F149: 0.06911264368 | G149: 0.3188683729 | H149: 0.5023396108 | I149: 0.6647083501 | J149: 0.7625975148 | K149: 0.9270913253 | L149: 1.108782729 | M149: 1.312810925 | N149: 1.35366243 | O149: 1.468925732 | P149: 1.563158426 | Q149: 1.632455637 | R149: 1.704851452 | S149: 1.833349733 | T149: 1.988988555 | U149: 2.068093355 | V149: 2.149434664
A150: 222097 | B150: 154550 | C150: 4 | D150: 1.437055969 | F150: 0.06925441176 | G150: 0.3220927099 | H150: 0.5048125203 | I150: 0.6666927363 | J150: 0.7636593564 | K150: 0.9272051689 | L150: 1.109136895 | M150: 1.317485684 | N150: 1.355789185 | O150: 1.469108706 | P150: 1.563865912 | Q150: 1.634192169 | R150: 1.706548186 | S150: 1.834520529 | T150: 1.991518925 | U150: 2.068986279 | V150: 2.151352513
A151: 253444 | B151: 150000 | C151: 4 | D151: 1.689626667 | F151: 0.07016129032 | G151: 0.3231229518 | H151: 0.5050725019 | I151: 0.6672188044 | J151: 0.7652710913 | K151: 0.9289746184 | L151: 1.110132197 | M151: 1.320353414 | N151: 1.356682036 | O151: 1.470916441 | P151: 1.564832606 | Q151: 1.636983143 | R151: 1.709759309 | S151: 1.836270586 | T151: 1.99415241 | U151: 2.069085942 | V151: 2.151368891
A152: 42307 | B152: 25000 | C152: 3 | D152: 1.69228 | F152: 0.07207731959 | G152: 0.3235226583 | H152: 0.5079328447 | I152: 0.6694114743 | J152: 0.7652893642 | K152: 0.9310673507 | L152: 1.113007088 | M152: 1.325275597 | N152: 1.357017697 | O152: 1.474239078 | P152: 1.569761962 | Q152: 1.637510369 | R152: 1.710253542 | S152: 1.838347765 | T152: 1.994911031 | U152: 2.070282567 | V152: 2.151529028
A153: 33846 | B153: 20000 | C153: 3 | D153: 1.6923 | F153: 0.07267210884 | G153: 0.3236607287 | H153: 0.5138547073 | I153: 0.6698988996 | J153: 0.7705045763 | K153: 0.9319751319 | L153: 1.113641283 | M153: 1.325322811 | N153: 1.357087015 | O153: 1.475174992 | P153: 1.580344549 | Q153: 1.637679004 | R153: 1.711895161 | S153: 1.838560224 | T153: 1.998427718 | U153: 2.070319072 | V153: 2.154141429
A154: 33846 | B154: 20000 | C154: 3 | D154: 1.6923 | F154: 0.07319550173 | G154: 0.3239734762 | H154: 0.5147424413 | I154: 0.6729516879 | J154: 0.7715498651 | K154: 0.9325220133 | L154: 1.114009267 | M154: 1.325839551 | N154: 1.360476754 | O154: 1.476166382 | P154: 1.581480677 | Q154: 1.638075683 | R154: 1.712308153 | S154: 1.839261074 | T154: 2.000084093 | U154: 2.070433698 | V154: 2.154631404
A155: 90000 | B155: 50000 | C155: 2 | D155: 1.8 | F155: 0.07383249581 | G155: 0.3279017287 | H155: 0.5174845766 | I155: 0.6750702644 | J155: 0.771780304 | K155: 0.9342191765 | L155: 1.114740937 | M155: 1.326275464 | N155: 1.360789264 | O155: 1.476217679 | P155: 1.581660608 | Q155: 1.638158314 | R155: 1.713483793 | S155: 1.841697769 | T155: 2.001266325 | U155: 2.072268824 | V155: 2.155103482
A156: 48000 | B156: 25000 | C156: 1 | D156: 1.92 | F156: 0.07434944238 | G156: 0.3295972496 | H156: 0.5184427308 | I156: 0.6775779028 | J156: 0.7734015885 | K156: 0.9380523927 | L156: 1.115890885 | M156: 1.326685151 | N156: 1.362912021 | O156: 1.47823123 | P156: 1.581777428 | Q156: 1.638937529 | R156: 1.714524425 | S156: 1.84355906 | T156: 2.001517165 | U156: 2.074321927 | V156: 2.155561851
A157: 100000 | B157: 50000 | C157: 5 | D157: 2 | F157: 0.07526631958 | G157: 0.3296014166 | H157: 0.5205165853 | I157: 0.6780108653 | J157: 0.7734550854 | K157: 0.9381183023 | L157: 1.117322207 | M157: 1.327629221 | N157: 1.367760445 | O157: 1.478422487 | P157: 1.584260156 | Q157: 1.649844537 | R157: 1.718506167 | S157: 1.845227653 | T157: 2.002006299 | U157: 2.075013414 | V157: 2.155590957
A158: 51186 | B158: 25000 | C158: 4 | D158: 2.04744 | F158: 0.07600644122 | G158: 0.3328573248 | H158: 0.520942634 | I158: 0.6825820303 | J158: 0.7759935208 | K158: 0.9386545699 | L158: 1.118125174 | M158: 1.328655266 | N158: 1.37051384 | O158: 1.48037496 | P158: 1.58435979 | Q158: 1.650341147 | R158: 1.720565752 | S158: 1.846023308 | T158: 2.00397122 | U158: 2.075051153 | V158: 2.15574719
A159: 51186 | B159: 25000 | C159: 4 | D159: 2.04744 | F159: 0.0775862069 | G159: 0.3328954027 | H159: 0.5222356541 | I159: 0.6827997934 | J159: 0.7782107445 | K159: 0.9423853872 | L159: 1.119646493 | M159: 1.330804788 | N159: 1.375102766 | O159: 1.481167852 | P159: 1.588438431 | Q159: 1.656095713 | R159: 1.721061449 | S159: 1.849039225 | T159: 2.006175245 | U159: 2.075085197 | V159: 2.156190245
A160: 51186 | B160: 25000 | C160: 4 | D160: 2.04744 | F160: 0.07917857143 | G160: 0.3387232755 | H160: 0.5233162338 | I160: 0.6839799956 | J160: 0.7834231984 | K160: 0.9445722679 | L160: 1.120794694 | M160: 1.332692401 | N160: 1.378177874 | O160: 1.482671346 | P160: 1.588798032 | Q160: 1.658648861 | R160: 1.721936715 | S160: 1.852877215 | T160: 2.007119495 | U160: 2.076839055 | V160: 2.157430784
A161: 51186 | B161: 25000 | C161: 4 | D161: 2.04744 | F161: 0.08 | G161: 0.3393427935 | H161: 0.5245666395 | I161: 0.6846841981 | J161: 0.7854053806 | K161: 0.9452829361 | L161: 1.12292285 | M161: 1.333428916 | N161: 1.378833879 | O161: 1.486177234 | P161: 1.589032115 | Q161: 1.659149538 | R161: 1.724036266 | S161: 1.855677899 | T161: 2.008163807 | U161: 2.077026623 | V161: 2.163391798
A162: 51186 | B162: 25000 | C162: 4 | D162: 2.04744 | F162: 0.08 | G162: 0.3402200744 | H162: 0.5249289254 | I162: 0.6889887427 | J162: 0.7882467722 | K162: 0.949245608 | L162: 1.123843148 | M162: 1.334229059 | N162: 1.379123862 | O162: 1.486600181 | P162: 1.589596326 | Q162: 1.659392678 | R162: 1.724324947 | S162: 1.856167652 | T162: 2.009700881 | U162: 2.078877076 | V162: 2.163635488
A163: 40949 | B163: 20000 | C163: 4 | D163: 2.04745 | F163: 0.08132845146 | G163: 0.3406693747 | H163: 0.5254881391 | I163: 0.6895955656 | J163: 0.7909731727 | K163: 0.9501125804 | L163: 1.12492715 | M163: 1.335508263 | N163: 1.380676739 | O163: 1.486936193 | P163: 1.590488137 | Q163: 1.66305756 | R163: 1.72485042 | S163: 1.856665187 | T163: 2.009786316 | U163: 2.079717737 | V163: 2.164385626
A164: 40949 | B164: 20000 | C164: 4 | D164: 2.04745 | F164: 0.08272525253 | G164: 0.3463616533 | H164: 0.5261605707 | I164: 0.6897200901 | J164: 0.7915158599 | K164: 0.951135336 | L164: 1.127034471 | M164: 1.336519638 | N164: 1.381704815 | O164: 1.489042336 | P164: 1.592011473 | Q164: 1.667764406 | R164: 1.725015242 | S164: 1.858282176 | T164: 2.010864987 | U164: 2.079882738 | V164: 2.164951539
A165: 40949 | B165: 20000 | C165: 4 | D165: 2.04745 | F165: 0.08292079208 | G165: 0.3497256226 | H165: 0.5261982285 | I165: 0.6918026846 | J165: 0.794722975 | K165: 0.9545345959 | L165: 1.129031604 | M165: 1.337708124 | N165: 1.383811383 | O165: 1.489176254 | P165: 1.592800727 | Q165: 1.671295562 | R165: 1.725715265 | S165: 1.858940433 | T165: 2.012361786 | U165: 2.080679195 | V165: 2.166064807
A166: 40949 | B166: 20000 | C166: 4 | D166: 2.04745 | F166: 0.08343020507 | G166: 0.350533246 | H166: 0.5277735735 | I166: 0.6946371878 | J166: 0.794746849 | K166: 0.9553163377 | L166: 1.129087139 | M166: 1.338327748 | N166: 1.384711004 | O166: 1.489499174 | P166: 1.593630004 | Q166: 1.672355122 | R166: 1.72685109 | S166: 1.860308373 | T166: 2.015136062 | U166: 2.081169625 | V166: 2.167998584
A167: 409491 | B167: 200000 | C167: 4 | D167: 2.047455 | F167: 0.08362275616 | G167: 0.3511623647 | H167: 0.5284387501 | I167: 0.6946661929 | J167: 0.7981597173 | K167: 0.9555243602 | L167: 1.12970632 | M167: 1.338605257 | N167: 1.385604074 | O167: 1.493558518 | P167: 1.593716433 | Q167: 1.67521551 | R167: 1.727634269 | S167: 1.861913031 | T167: 2.016308072 | U167: 2.086016304 | V167: 2.173374723
A168: 102373 | B168: 50000 | C168: 4 | D168: 2.04746 | F168: 0.08375787402 | G168: 0.3518468282 | H168: 0.531521492 | I168: 0.6959715926 | J168: 0.8013356774 | K168: 0.956211239 | L168: 1.129804698 | M168: 1.339089303 | N168: 1.385826222 | O168: 1.495318001 | P168: 1.594049558 | Q168: 1.676758764 | R168: 1.731519844 | S168: 1.86370136 | T168: 2.016411911 | U168: 2.086787511 | V168: 2.173411713
A169: 102373 | B169: 50000 | C169: 4 | D169: 2.04746 | F169: 0.08408893281 | G169: 0.3519113043 | H169: 0.5316629903 | I169: 0.7001394453 | J169: 0.8020900876 | K169: 0.9606337231 | L169: 1.131455585 | M169: 1.339899631 | N169: 1.391342883 | O169: 1.499058547 | P169: 1.59490098 | Q169: 1.679939711 | R169: 1.732200051 | S169: 1.865193631 | T169: 2.016702052 | U169: 2.088841884 | V169: 2.174791057
A170: 20475 | B170: 10000 | C170: 4 | D170: 2.0475 | F170: 0.08602147239 | G170: 0.3525086294 | H170: 0.5378764069 | I170: 0.7022317418 | J170: 0.8043009486 | K170: 0.962073276 | L170: 1.13257325 | M170: 1.340141275 | N170: 1.391994913 | O170: 1.499114012 | P170: 1.595340097 | Q170: 1.681789032 | R170: 1.732339031 | S170: 1.865552871 | T170: 2.016929828 | U170: 2.089357626 | V170: 2.175519887
A171: 323500 | B171: 150000 | C171: 4 | D171: 2.156666667 | F171: 0.086029684 | G171: 0.3536818713 | H171: 0.5382105734 | I171: 0.7030656331 | J171: 0.8044102193 | K171: 0.9628617425 | L171: 1.134642217 | M171: 1.340616733 | N171: 1.393078571 | O171: 1.499216486 | P171: 1.596481464 | Q171: 1.689929742 | R171: 1.734440992 | S171: 1.866979493 | T171: 2.01735512 | U171: 2.090968149 | V171: 2.177392296
A172: 34068 | B172: 15000 | C172: 3 | D172: 2.2712 | F172: 0.08605549701 | G172: 0.3541312884 | H172: 0.5394362934 | I172: 0.7054087881 | J172: 0.8045451815 | K172: 0.9646282668 | L172: 1.139034736 | M172: 1.3407955 | N172: 1.393079726 | O172: 1.501231996 | P172: 1.596759545 | Q172: 1.690112814 | R172: 1.736124153 | S172: 1.869081247 | T172: 2.01751625 | U172: 2.091122121 | V172: 2.177495559
A173: 56780 | B173: 25000 | C173: 3 | D173: 2.2712 | F173: 0.08606549708 | G173: 0.3598082513 | H173: 0.540708304 | I173: 0.7061436086 | J173: 0.8052104227 | K173: 0.965741806 | L173: 1.139416592 | M173: 1.341312904 | N173: 1.393580393 | O173: 1.501413522 | P173: 1.600244664 | Q173: 1.690535858 | R173: 1.7369825 | S173: 1.871022498 | T173: 2.018110213 | U173: 2.093459869 | V173: 2.178561619
A174: 56780 | B174: 25000 | C174: 3 | D174: 2.2712 | F174: 0.08618562874 | G174: 0.364511494 | H174: 0.5418013361 | I174: 0.7086535046 | J174: 0.8070929521 | K174: 0.9659990956 | L174: 1.141097214 | M174: 1.341878164 | N174: 1.39530146 | O174: 1.501457902 | P174: 1.602052431 | Q174: 1.69081732 | R174: 1.738298918 | S174: 1.871292645 | T174: 2.018307968 | U174: 2.093663589 | V174: 2.180748938
A175: 113560 | B175: 50000 | C175: 3 | D175: 2.2712 | F175: 0.08630242826 | G175: 0.3646413776 | H175: 0.541862218 | I175: 0.7112090465 | J175: 0.8072228505 | K175: 0.9673197533 | L175: 1.145651541 | M175: 1.342155755 | N175: 1.396224265 | O175: 1.502738445 | P175: 1.603413149 | Q175: 1.692186982 | R175: 1.743449476 | S175: 1.874640583 | T175: 2.01834851 | U175: 2.094365565 | V175: 2.180979128
A176: 113560 | B176: 50000 | C176: 3 | D176: 2.2712 | F176: 0.08785393258 | G176: 0.364660426 | H176: 0.5429459466 | I176: 0.7120367934 | J176: 0.8072734435 | K176: 0.9674513629 | L176: 1.150313791 | M176: 1.344839856 | N176: 1.396445686 | O176: 1.503018441 | P176: 1.604184337 | Q176: 1.692767708 | R176: 1.744283748 | S176: 1.879439864 | T176: 2.018664283 | U176: 2.096814537 | V176: 2.183938755
A177: 52243 | B177: 23000 | C177: 0 | D177: 2.271434783 | F177: 0.08804039494 | G177: 0.365758481 | H177: 0.544081139 | I177: 0.7134144703 | J177: 0.8077457405 | K177: 0.9679214425 | L177: 1.15246318 | M177: 1.347300985 | N177: 1.397473066 | O177: 1.504623958 | P177: 1.609646978 | Q177: 1.69495202 | R177: 1.748875143 | S177: 1.879921966 | T177: 2.020099635 | U177: 2.099467041 | V177: 2.185857213
A178: 66800 | B178: 28800 | C178: 6 | D178: 2.319444444 | F178: 0.08832869565 | G178: 0.3657594381 | H178: 0.5469600267 | I178: 0.7134713357 | J178: 0.8078724015 | K178: 0.9679850911 | L178: 1.152501055 | M178: 1.347780157 | N178: 1.399422747 | O178: 1.505619639 | P178: 1.610216199 | Q178: 1.695218925 | R178: 1.749023466 | S178: 1.880010557 | T178: 2.020938372 | U178: 2.100017163 | V178: 2.186185591
A179: 250000 | B179: 100000 | C179: 4 | D179: 2.5 | F179: 0.08833080098 | G179: 0.3677231884 | H179: 0.5474266636 | I179: 0.7148904442 | J179: 0.810006119 | K179: 0.968574362 | L179: 1.152766496 | M179: 1.347832433 | N179: 1.399624457 | O179: 1.507039403 | P179: 1.610842148 | Q179: 1.695692351 | R179: 1.749528834 | S179: 1.880745844 | T179: 2.022311239 | U179: 2.101590958 | V179: 2.187025913
A180: 260802 | B180: 100000 | C180: 4 | D180: 2.60802 | F180: 0.0885733382 | G180: 0.3684703262 | H180: 0.5492980635 | I180: 0.7154218634 | J180: 0.8100513899 | K180: 0.9698928712 | L180: 1.157631742 | M180: 1.350127549 | N180: 1.402400935 | O180: 1.508462471 | P180: 1.614938962 | Q180: 1.696528594 | R180: 1.751132398 | S180: 1.881166998 | T180: 2.022881832 | U180: 2.101643638 | V180: 2.187073047
A181: 104321 | B181: 40000 | C181: 4 | D181: 2.608025 | F181: 0.08920465116 | G181: 0.3698673401 | H181: 0.5496610322 | I181: 0.7173360688 | J181: 0.8123810451 | K181: 0.9710909075 | L181: 1.159319841 | M181: 1.355094829 | N181: 1.407263714 | O181: 1.511682151 | P181: 1.61576245 | Q181: 1.697800544 | R181: 1.751222384 | S181: 1.882902598 | T181: 2.025692941 | U181: 2.104047249 | V181: 2.187084559
A182: 45313 | B182: 17206 | C182: 4 | D182: 2.633558061 | F182: 0.09006215247 | G182: 0.369916841 | H182: 0.5511433537 | I182: 0.7177489448 | J182: 0.8138781438 | K182: 0.9739799075 | L182: 1.160764318 | M182: 1.356849733 | N182: 1.407767912 | O182: 1.511737075 | P182: 1.61630878 | Q182: 1.698301418 | R182: 1.751606449 | S182: 1.882958076 | T182: 2.026505654 | U182: 2.10552321 | V182: 2.188536546
A183: 136006 | B183: 50000 | C183: 4 | D183: 2.72012 | F183: 0.0910326087 | G183: 0.37080345 | H183: 0.5523151142 | I183: 0.7196344426 | J183: 0.8146232222 | K183: 0.9765009572 | L183: 1.163698993 | M183: 1.36011661 | N183: 1.408037557 | O183: 1.512425972 | P183: 1.616391391 | Q183: 1.699366901 | R183: 1.755141564 | S183: 1.883344153 | T183: 2.027177567 | U183: 2.107273496 | V183: 2.189105867
A184: 51000 | B184: 18000 | C184: 2 | D184: 2.833333333 | F184: 0.09205745455 | G184: 0.3716089243 | H184: 0.5523916112 | I184: 0.7206887163 | J184: 0.8178673196 | K184: 0.9767872947 | L184: 1.166709048 | M184: 1.36164735 | N184: 1.408491575 | O184: 1.514357771 | P184: 1.616935828 | Q184: 1.699412045 | R184: 1.755378574 | S184: 1.883760132 | T184: 2.0278598 | U184: 2.109496972 | V184: 2.195251437
A185: 30000 | B185: 10000 | C185: 2 | D185: 3 | F185: 0.09386792453 | G185: 0.3749882629 | H185: 0.5524340153 | I185: 0.7243520047 | J185: 0.8183436561 | K185: 0.9771743171 | L185: 1.167667266 | M185: 1.363932866 | N185: 1.408734489 | O185: 1.519457288 | P185: 1.61730626 | Q185: 1.699624999 | R185: 1.756742009 | S185: 1.888074454 | T185: 2.030502853 | U185: 2.109891004 | V185: 2.198467089
A186: 75000 | B186: 25000 | C186: 5 | D186: 3 | F186: 0.09409849652 | G186: 0.3753526936 | H186: 0.5529956961 | I186: 0.7245691895 | J186: 0.818403611 | K186: 0.9844626027 | L186: 1.170053622 | M186: 1.364100288 | N186: 1.408810523 | O186: 1.523827029 | P186: 1.619337308 | Q186: 1.704664543 | R186: 1.758495679 | S186: 1.891424043 | T186: 2.031014788 | U186: 2.112864252 | V186: 2.201349526
A187: 471756 | B187: 155000 | C187: 2 | D187: 3.043587097 | F187: 0.09411626298 | G187: 0.3764500745 | H187: 0.5544879794 | I187: 0.7254813049 | J187: 0.821227498 | K187: 0.9871360695 | L187: 1.170130833 | M187: 1.365663102 | N187: 1.411273229 | O187: 1.525970817 | P187: 1.620372462 | Q187: 1.705782073 | R187: 1.759440734 | S187: 1.892835831 | T187: 2.031856983 | U187: 2.113317941 | V187: 2.202155691
A188: 1618113 | B188: 500000 | C188: 4 | D188: 3.236226 | F188: 0.09426519337 | G188: 0.3771003976 | H188: 0.5559273674 | I188: 0.7282121202 | J188: 0.8267414654 | K188: 0.9875398452 | L188: 1.172660983 | M188: 1.366801638 | N188: 1.41179727 | O188: 1.528249759 | P188: 1.621338858 | Q188: 1.706958322 | R188: 1.759869542 | S188: 1.893710556 | T188: 2.032057309 | U188: 2.115143536 | V188: 2.202166374
A189: 81598 | B189: 25000 | C189: 3 | D189: 3.26392 | F189: 0.09445638945 | G189: 0.3781636733 | H189: 0.5561899927 | I189: 0.7286076026 | J189: 0.8287901549 | K189: 0.9876111198 | L189: 1.172674839 | M189: 1.367295246 | N189: 1.412263879 | O189: 1.529658452 | P189: 1.625347867 | Q189: 1.707513851 | R189: 1.76066593 | S189: 1.89526267 | T189: 2.033156205 | U189: 2.11521304 | V189: 2.203083651
A190: 1430000 | B190: 425000 | C190: 4 | D190: 3.364705882 | F190: 0.09489981785 | G190: 0.3788272718 | H190: 0.5572407218 | I190: 0.7303055092 | J190: 0.8288770007 | K190: 0.9880793981 | L190: 1.17516723 | M190: 1.368458183 | N190: 1.417343782 | O190: 1.535154049 | P190: 1.626964 | Q190: 1.708318142 | R190: 1.761924774 | S190: 1.902063595 | T190: 2.033246933 | U190: 2.119297671 | V190: 2.204521999
A191: 1430000 | B191: 425000 | C191: 4 | D191: 3.364705882 | F191: 0.09518396226 | G191: 0.3827244094 | H191: 0.5582071866 | I191: 0.7318537128 | J191: 0.8290582407 | K191: 0.9896516452 | L191: 1.175350872 | M191: 1.37005954 | N191: 1.417476374 | O191: 1.535969632 | P191: 1.627630422 | Q191: 1.710287174 | R191: 1.762348168 | S191: 1.904073567 | T191: 2.034944308 | U191: 2.120973267 | V191: 2.205905978
A192: 1430000 | B192: 425000 | C192: 4 | D192: 3.364705882 | F192: 0.0955615942 | G192: 0.3830555739 | H192: 0.5623265772 | I192: 0.7324237744 | J192: 0.8320605053 | K192: 0.9900878969 | L192: 1.175367625 | M192: 1.371258748 | N192: 1.417957868 | O192: 1.538686902 | P192: 1.62787314 | Q192: 1.710302369 | R192: 1.763701859 | S192: 1.904345604 | T192: 2.035508513 | U192: 2.125310661 | V192: 2.206631057
A193: 1430000 | B193: 425000 | C193: 4 | D193: 3.364705882 | F193: 0.09707342657 | G193: 0.3846501976 | H193: 0.563168052 | I193: 0.734273547 | J193: 0.832688402 | K193: 0.9923424255 | L193: 1.1803744 | M193: 1.372256872 | N193: 1.419721983 | O193: 1.540972984 | P193: 1.6283886 | Q193: 1.711295154 | R193: 1.766847234 | S193: 1.90442495 | T193: 2.036716167 | U193: 2.126611535 | V193: 2.207093907
A194: 1430000 | B194: 425000 | C194: 4 | D194: 3.364705882 | F194: 0.09724062596 | G194: 0.3848968158 | H194: 0.5651918157 | I194: 0.7355405374 | J194: 0.8350270891 | K194: 0.9930526854 | L194: 1.181659183 | M194: 1.372776126 | N194: 1.420175932 | O194: 1.541328002 | P194: 1.628649334 | Q194: 1.712316243 | R194: 1.772071283 | S194: 1.905072684 | T194: 2.037555081 | U194: 2.127922301 | V194: 2.209100969
A195: 1430000 | B195: 425000 | C195: 4 | D195: 3.364705882 | F195: 0.09816009281 | G195: 0.3857642403 | H195: 0.5656071015 | I195: 0.736336321 | J195: 0.8376247724 | K195: 0.9939517602 | L195: 1.18216402 | M195: 1.376065631 | N195: 1.420391562 | O195: 1.542515185 | P195: 1.629475553 | Q195: 1.713868824 | R195: 1.772861821 | S195: 1.905211679 | T195: 2.037772745 | U195: 2.128822058 | V195: 2.209309712
A196: 84820 | B196: 25000 | C196: 4 | D196: 3.3928 | F196: 0.09828981036 | G196: 0.3885884802 | H196: 0.566344804 | I196: 0.7376962664 | J196: 0.8378533085 | K196: 0.9954572355 | L196: 1.18323775 | M196: 1.376501584 | N196: 1.421143191 | O196: 1.543750288 | P196: 1.630122541 | Q196: 1.714183395 | R196: 1.775571406 | S196: 1.906712942 | T196: 2.038968522 | U196: 2.129797137 | V196: 2.209800537
A197: 170000 | B197: 50000 | C197: 5 | D197: 3.4 | F197: 0.09835186755 | G197: 0.3898063291 | H197: 0.566471031 | I197: 0.7394942725 | J197: 0.83786808 | K197: 0.9957434872 | L197: 1.184573497 | M197: 1.37825609 | N197: 1.422368683 | O197: 1.544383506 | P197: 1.631021162 | Q197: 1.714355939 | R197: 1.777896834 | S197: 1.908466126 | T197: 2.039526845 | U197: 2.130099926 | V197: 2.209955019
A198: 392132 | B198: 100000 | C198: 2 | D198: 3.92132 | F198: 0.09867228916 | G198: 0.3925257414 | H198: 0.5664832791 | I198: 0.7399500012 | J198: 0.8389746994 | K198: 0.9966193778 | L198: 1.185600333 | M198: 1.378953457 | N198: 1.424114174 | O198: 1.544470946 | P198: 1.6327636 | Q198: 1.714689304 | R198: 1.778141165 | S198: 1.91213811 | T198: 2.04257206 | U198: 2.130717328 | V198: 2.210214839
A199: 150000 | B199: 37500 | C199: 5 | D199: 4 | F199: 0.09907190635 | G199: 0.3935537341 | H199: 0.5688789954 | I199: 0.7411011371 | J199: 0.8392160093 | K199: 0.9988340424 | L199: 1.188799315 | M199: 1.379889716 | N199: 1.425062125 | O199: 1.544472839 | P199: 1.634048409 | Q199: 1.714719353 | R199: 1.778327018 | S199: 1.91450222 | T199: 2.042888128 | U199: 2.131036501 | V199: 2.210254952
A200: 20000 | B200: 5000 | C200: 1 | D200: 4 | F200: 0.09940015244 | G200: 0.3955623948 | H200: 0.5716797191 | I200: 0.7424236723 | J200: 0.84119691 | K200: 0.999410134 | L200: 1.191607308 | M200: 1.381240153 | N200: 1.425816056 | O200: 1.544917701 | P200: 1.635814675 | Q200: 1.715887476 | R200: 1.779211436 | S200: 1.918039559 | T200: 2.043895114 | U200: 2.131141011 | V200: 2.210890146
A201: 40000 | B201: 10000 | C201: 1 | D201: 4 | F201: 0.09969802731 | G201: 0.3959219067 | H201: 0.5719533218 | I201: 0.7424552688 | J201: 0.8414680125 | K201: 1.000450843 | L201: 1.192385779 | M201: 1.382397883 | N201: 1.428419871 | O201: 1.546624786 | P201: 1.636106789 | Q201: 1.716175828 | R201: 1.779917324 | S201: 1.920674064 | T201: 2.045604431 | U201: 2.136724627 | V201: 2.212319449
A202: 40000 | B202: 10000 | C202: 1 | D202: 4 | F202: 0.0997839603 | G202: 0.3962010451 | H202: 0.5724749725 | I202: 0.742718846 | J202: 0.8426277552 | K202: 1.001313891 | L202: 1.193929129 | M202: 1.383924626 | N202: 1.429126213 | O202: 1.548565819 | P202: 1.636574479 | Q202: 1.717199064 | R202: 1.780412375 | S202: 1.921200265 | T202: 2.047314404 | U202: 2.137072648 | V202: 2.212570282
A203: 40000 | B203: 10000 | C203: 1 | D203: =A203/B203 -> 4 | F203: 0.0997965812 | G203: 0.3980078503 | H203: 0.5728985201 | I203: 0.7441669984 | J203: 0.8430905367 | K203: 1.001665421 | L203: 1.195090315 | M203: 1.384343921 | N203: 1.429192131 | O203: 1.549719159 | P203: 1.638069893 | Q203: 1.717595818 | R203: 1.781137624 | S203: 1.921205822 | T203: 2.047535647 | U203: 2.139969187 | V203: 2.212879221
A204: 40000 | B204: 10000 | C204: 1 | D204: 4 | F204: 0.101010101 | G204: 0.4005198939 | H204: 0.5733436072 | I204: 0.7458623918 | J204: 0.844123762 | K204: 1.005695866 | L204: 1.195272802 | M204: 1.387113884 | N204: 1.431335062 | O204: 1.550880847 | P204: 1.641456789 | Q204: 1.719711029 | R204: 1.78241895 | S204: 1.922748816 | T204: 2.049241377 | U204: 2.142273997 | V204: 2.214767697
A205: 40000 | B205: 10000 | C205: 1 | D205: 4 | F205: 0.1012615607 | G205: 0.401045065 | H205: 0.5739552212 | I205: 0.7465583978 | J205: 0.8441244218 | K205: 1.010237152 | L205: 1.196555703 | M205: 1.388135853 | N205: 1.431352435 | O205: 1.551388331 | P205: 1.643439487 | Q205: 1.719901333 | R205: 1.782937498 | S205: 1.922856687 | T205: 2.049750755 | U205: 2.142333922 | V205: 2.215276285
A206: 40000 | B206: 10000 | C206: 1 | D206: 4 | F206: 0.1013695652 | G206: 0.4010632296 | H206: 0.5741173694 | I206: 0.7468960498 | J206: 0.8442583418 | K206: 1.010518183 | L206: 1.199692235 | M206: 1.388568483 | N206: 1.436977604 | O206: 1.554293311 | P206: 1.646258583 | Q206: 1.720237728 | R206: 1.783556347 | S206: 1.928867259 | T206: 2.049959577 | U206: 2.147284703 | V206: 2.215381175
... 4294 more rows
